Cogmind - Beta 17.1 @@@ ROGUE MODE // 2026.09.13 @ 00:27:33 Player: Boxplot Result: Core destroyed Performance ------------- Evolutions (9) 4500 Regions Visited (35) 7000 Robots Destroyed (409) 2045 Value Destroyed (20157) 20157 Prototype IDs (376) 7520 Alien Tech Used (12) 2400 Bonus (32261) 32261 TOTAL SCORE: 75883 Bonus ------- High Alert Combat Kills 924 Follower Combat Kills 2342 Hunted by Unchained 500 Network Hubs Disabled 200 Registered with UFD 300 Met Optimus in HQ 500 Met Zhirov 300 Met Warlord at Base 500 MAIN.C Attacked Warlord 500 Warlord Defense Kills 1318 Built Enhanced Grunts 300 Met R17 at Cetus 500 Used Core Reset Matrix 3000 Met R17 at Research 2000 Destroyed MAIN.C Guards 500 Met MAIN.C 5000 Destroyed MAIN.C Shell 5000 Destroyed MAIN.C 10000 Met Architect 300 Destroyed A6 400 Destroyed A5 500 Friendly Fire -2623 Cogmind --------- Core Integrity 0/1850 Matter 20/300 Energy 671/700 System Corruption 9% Temperature Cool (0) Movement Walking (101) Location -1/Access_0 Parts ------- > --- POWER (2) -------- Vortex Chain Reactor (fused) > --- PROPULSION (6) --- Enhanced Biometal Leg Enhanced Biometal Leg Enhanced Biometal Leg Enhanced Biometal Leg High-density Centrium Leg Experimental Biometal Leg > --- UTILITY (13) ----- Experimental Coolant Injector Huge Storage Unit Weapon Mount Experimental Core Analyzer Improved Armor Integrity Analyzer Quantum Capacitor Thermal Barrier AEGIS Remote Shield Microwarp Drive > --- WEAPON (4) ------- Omega Cannon Gamma Bomb Array System Spiker > --- INVENTORY (25) --- High-density Centrium Leg High-density Centrium Leg High-density Centrium Leg Experimental Thermal Generator Experimental Energy Well (0) Experimental Energy Well (600) Experimental Matter Compressor (71) Precision Energy Filter Advanced Weapon Cycler Experimental Utility Shielding Heavy Reactive Plating Heavy Regenerative Plating Experimental Hardlight Generator Compact HERF Cannon Enhanced Nova Cannon Cooled Nova Cannon Core Cannon Gamma Bomb Array Sigix Broadsword Peak State ------------ > --- POWER ------------ Vortex Chain Reactor > --- PROPULSION ------- Enhanced Biometal Leg Enhanced Biometal Leg Enhanced Biometal Leg High-density Centrium Leg High-density Centrium Leg High-density Centrium Leg > --- UTILITY ---------- Huge Storage Unit Experimental Core Analyzer Improved Armor Integrity Analyzer Experimental Reaction Control System Experimental Phase Shifter Experimental Utility Shielding Heavy Regenerative Plating Thermal Barrier AEGIS Remote Shield Microwarp Drive > --- WEAPON ----------- Cooled Nova Cannon Core Cannon Hypervelocity Multirail > --- INVENTORY -------- Enhanced Biometal Leg High-density Centrium Leg Experimental Thermal Generator Experimental Coolant Injector Experimental Energy Well Experimental Energy Well Experimental Matter Compressor Weapon Mount Precision Energy Filter Quantum Capacitor Advanced Weapon Cycler Experimental Utility Shielding Heavy Reactive Plating Experimental Focal Shield Experimental Hardlight Generator Integrity Redistributor Compact HERF Cannon Enhanced Nova Cannon Omega Cannon Gamma Bomb Array Gamma Bomb Array System Spiker [Rating: 274] Favorites ----------- Power Vortex Chain Reactor Engine Angular Momentum Engine Power Core Cooled Fission Core Reactor Vortex Chain Reactor Propulsion Enhanced Biometal Leg Treads Light Treads Leg Enhanced Biometal Leg Wheel Wheel Hover Unit Combat Gravmag System Flight Unit Cooled Nuclear Pulse Thruster Utility Improved Hacking Suite Device Advanced Sensor Array Storage Huge Storage Unit Processor Advanced Signal Interpreter Hackware Improved Hacking Suite Protection Experimental Utility Shielding Artifact Microwarp Drive Weapon Cooled Nova Cannon Energy Gun Heavy Beamcaster Energy Cannon Cooled Nova Cannon Ballistic Gun Hypervelocity Multirail Ballistic Cannon Enhanced Hardcell Cannon Launcher Mini Smartbomb Launcher Special Weapon System Spiker Impact Weapon Maul Slashing Weapon DM-GVY's Chainsaw Piercing Weapon Vortex Lance Special Melee Weapon Advanced Datajack Build | -11 -10 -10 -10 -9 -8 -8 -8 -8 -6 -6 -6 -6 -6 -6 -6 -5 -5 -5 -5 -4 -4 -4 -4 -4 -4 -4 -3 -3 -3 -2 -2 -2 -1 -1 -1 ------- Run | Yrd Mat Min Exi Min Mat Sto Rec Scr Fac Was Fac Ext Cet Arc Hub Fac Upp Upp Zhi Pro Fac Was Fac Upp Upp War Pro Res Tes Res Qua Sec Acc Com Ac0 Slots Evolved 18 | . . . . . 4 . . . 4 . . . . . . 2 . . . . 2 . . . . . . 2 . 2 . . 2 . . Power 1 | . . . . . . . . . . . . . . . . . . . . . . . . . . . . 1 . . . . . . . Propulsion 4 | . . . . . 2 . . . 1 . . . . . . 1 . . . . . . . . . . . . . . . . . . . Utility 11 | . . . . . 2 . . . 3 . . . . . . 1 . . . . 2 . . . . . . . . 1 . . 2 . . Weapon 2 | . . . . . . . . . . . . . . . . . . . . . . . . . . . . 1 . 1 . . . . . Parts Attached 337 | 6 13 12 1 12 44 16 1 13 19 4 3 5 7 5 11 10 3 . 5 2 16 4 4 3 . 20 5 10 15 7 9 15 1 29 7 Power 24 | 1 2 3 . 1 3 5 . . 2 . . . . . . 1 1 . 1 . . . . . . 1 . 2 . . . . . 1 . Engine 17 | 1 2 2 . 1 3 5 . . 1 . . . . . . 1 1 . . . . . . . . . . . . . . . . . . Core 3 | . . 1 . . . . . . 1 . . . . . . . . . . . . . . . . 1 . . . . . . . . . Reactor 4 | . . . . . . . . . . . . . . . . . . . 1 . . . . . . . . 2 . . . . . 1 . Propulsion 80 | 2 . 3 . 1 11 6 1 3 7 . . 2 2 . 1 5 2 . 1 . 1 . 1 . . 9 3 1 . 2 3 4 1 7 1 Treads 14 | 1 . 2 . 1 4 3 . 2 . . . . 1 . . . . . . . . . . . . . . . . . . . . . . Leg 29 | . . . . . . . . . . . . . 1 . . . . . . . . . . . . 6 3 1 . 2 3 4 1 7 1 Wheel 13 | 1 . 1 . . 6 3 1 1 . . . . . . . . . . . . . . . . . . . . . . . . . . . Hover 23 | . . . . . 1 . . . 7 . . 2 . . 1 5 2 . . . 1 . 1 . . 3 . . . . . . . . . Flight 1 | . . . . . . . . . . . . . . . . . . . 1 . . . . . . . . . . . . . . . . Utility 147 | 1 5 3 1 5 17 1 . 7 7 2 2 1 3 3 10 2 . . 3 2 12 4 2 2 . 5 2 5 8 4 4 9 . 14 1 Device 63 | . 3 2 . 1 7 . . 2 2 1 1 . 1 2 3 1 . . 1 1 6 3 1 1 . 3 1 2 4 . 3 4 . 7 . Storage 14 | 1 2 . 1 2 . . . 1 . . . . 1 1 1 . . . 1 . . . . . . . . . . . . . . 3 . Processor 24 | . . . . . 3 . . 1 2 1 1 1 . . 1 . . . . 1 1 . . 1 . . . 1 1 2 . 4 . 3 . Hackware 18 | . . . . . . . . . 2 . . . . . 4 1 . . . . 5 1 1 . . 1 . 2 . 1 . . . . . Protection 27 | . . 1 . 2 7 1 . 3 1 . . . 1 . 1 . . . 1 . . . . . . 1 1 . 3 1 1 . . 1 1 Artifact 1 | . . . . . . . . . . . . . . . . . . . . . . . . . . . . . . . . 1 . . . Weapon 86 | 2 6 3 . 5 13 4 . 3 3 2 1 2 2 2 . 2 . . . . 3 . 1 1 . 5 . 2 7 1 2 2 . 7 5 Energy Gun 13 | . . . . 1 1 2 . . 1 . . 1 . . . . . . . . . . . 1 . 3 . . 2 . . . . 1 . Energy Cannon 19 | . . . . . 1 1 . . . . 1 1 1 . . 1 . . . . 2 . . . . 1 . 2 2 . 2 1 . 1 2 Ballistic Gun 31 | 2 5 2 . 4 7 1 . . . 2 . . 1 2 . . . . . . . . 1 . . . . . 2 . . 1 . 1 . Ballistic Cannon 5 | . . . . . . . . . 1 . . . . . . . . . . . . . . . . . . . . . . . . 4 . Launcher 9 | . 1 1 . . 3 . . . . . . . . . . . . . . . . . . . . . . . 1 1 . . . . 2 Special Weapon 3 | . . . . . . . . 2 . . . . . . . 1 . . . . . . . . . . . . . . . . . . . Impact Weapon 1 | . . . . . 1 . . . . . . . . . . . . . . . . . . . . . . . . . . . . . . Slashing Weapon 2 | . . . . . . . . 1 . . . . . . . . . . . . . . . . . . . . . . . . . . 1 Piercing Weapon 1 | . . . . . . . . . . . . . . . . . . . . . . . . . . 1 . . . . . . . . . Special Melee Weapon 2 | . . . . . . . . . 1 . . . . . . . . . . . 1 . . . . . . . . . . . . . . Unidentified Prototypes 50 | . . . . . 2 2 . . . . . . 7 . 4 1 . . 5 . . 2 . . 1 9 1 . 6 . . 7 . 3 . Corrupted Parts 14 | . . . . . . . . . . . . . . 2 . . . . . . . . . . . . 2 . 1 . . . . 9 . System Corruption 81 | . . . . . . . . . . . . . . 4 . . . . . . . . . . . . 10 . 10 . . . . 57 . Parts Lost 36 | . 1 . . 4 7 8 . . . . . . . . . 2 . . . . 1 1 1 . . 1 . . 1 . . . . 4 5 Power 4 | . 1 . . . . 3 . . . . . . . . . . . . . . . . . . . . . . . . . . . . . Propulsion 7 | . . . . 1 3 2 . . . . . . . . . . . . . . . . 1 . . . . . . . . . . . . Utility 15 | . . . . 1 3 . . . . . . . . . . 2 . . . . 1 1 . . . 1 . . 1 . . . . 1 4 Weapon 10 | . . . . 2 1 3 . . . . . . . . . . . . . . . . . . . . . . . . . . . 3 1 Highest Loss Streak 3 | . 1 . . 3 3 2 . . . . . . . . . 1 . . . . 1 1 1 . . 1 . . 1 . . . . 3 1 To Critical Strikes 1 | . . . . . . . . . . . . . . . . . . . . . . . . . . . . . . . . . . . 1 Average Backups 19 | 2 10 14 14 16 23 23 24 24 15 13 12 12 11 14 15 17 18 17 17 18 18 18 18 18 18 20 23 22 23 23 23 22 21 22 19 Power . | . 1 1 1 1 2 1 2 2 1 1 1 1 1 1 . 1 1 1 1 1 1 1 1 1 1 1 1 . . . . . . . . Propulsion 2 | 1 3 6 6 6 5 7 8 7 1 1 1 1 1 1 1 1 1 1 . . . . . . . 1 3 . . . . . . 2 2 Utility 10 | . 2 3 3 3 9 10 10 12 8 7 5 5 5 7 9 9 9 8 9 11 11 11 10 10 10 11 13 15 16 16 15 15 14 14 10 Weapon 3 | . 3 4 4 5 5 4 4 2 3 3 3 4 3 3 2 4 5 4 3 3 3 3 3 4 4 4 3 4 5 4 4 4 4 3 5 Tool/Special . | . . . . . . . . . . . . . . . . . . . . . . . . . . . . . . . . . . . . Unused Backups 99 | . 12 5 . . 9 8 2 1 5 2 . 1 1 7 . 5 . . . . 5 1 2 . . . 1 . 10 . 3 5 . 13 1 Power 11 | . 1 2 . . 3 . . . 2 . . . . . . 1 . . . . . . . . . . . . . . . . . 2 . Propulsion 24 | . 4 1 . . 2 4 . . 1 . . . . 5 . 2 . . . . . . . . . . 1 . 2 . . . . 2 . Utility 34 | . . 1 . . . 1 . 1 1 2 . . 1 2 . 2 . . . . 5 . 1 . . . . . 3 . 2 5 . 6 1 Weapon 30 | . 7 1 . . 4 3 2 . 1 . . 1 . . . . . . . . . 1 1 . . . . . 5 . 1 . . 3 . Tool/Special . | . . . . . . . . . . . . . . . . . . . . . . . . . . . . . . . . . . . . Average Slot Usage (%) 92 | . 99 100 100 99 83 86 98 99 93 93 93 92 85 84 81 88 93 93 88 100 99 98 99 100 100 97 99 97 94 93 93 89 87 80 82 Engine 4 | . 14 11 14 14 9 8 9 9 1 6 6 6 6 6 6 5 5 5 2 . . . . 1 . . . . . . . . . . . Reactor 1 | . . . . . . . . . . . . . . . . . . . 2 5 5 5 5 3 4 4 . 3 4 4 4 4 4 4 4 Treads 3 | . 14 14 14 13 5 5 18 18 . . . . . . . . . . . . . . . . . . . . . . . . . . . Leg 9 | . . . . . . . . . . . . . . . . . . . . . . . . . . 1 29 28 28 26 26 26 24 23 23 Wheel 4 | . 14 14 14 14 16 17 18 18 . . . . . . . . . . . . . . . . . . . . . . . . . . . Hover 10 | . . . . . . . . . 26 26 26 25 19 20 20 24 33 33 33 35 31 31 30 31 31 29 1 . . . . . . . . Device 14 | . 13 11 . 1 8 11 9 9 6 6 6 6 6 7 10 9 11 11 10 11 9 10 11 26 26 21 14 18 20 29 30 25 24 21 27 Storage 6 | . 14 14 14 14 9 9 9 9 6 6 6 6 6 6 5 5 5 5 5 5 5 5 5 5 5 5 5 4 4 4 4 4 4 4 4 Processor 7 | . . . . . 2 9 9 9 12 19 20 20 20 20 17 6 5 5 5 9 5 5 5 5 5 5 5 4 9 8 8 8 8 8 8 Hackware 7 | . . . . . . . . . 12 9 6 6 6 3 1 21 17 17 17 17 28 26 27 15 15 19 21 17 10 3 . . . . . Protection 5 | . . 2 14 12 15 7 9 9 5 2 6 6 6 6 5 1 5 5 5 1 2 3 1 . . . 5 . . . 1 5 11 4 3 Energy Cannon 4 | . . . . . . 2 2 8 . . 5 1 5 2 4 4 4 4 . 5 3 4 3 3 4 2 4 9 8 7 8 8 8 6 3 Ballistic Gun 7 | . 27 27 28 22 14 9 14 8 1 11 7 6 . 10 8 5 . . 1 5 5 4 5 4 3 1 5 4 3 3 3 2 4 3 1 Peak Build Rating 274 | 6 11 13 11 17 43 44 34 48 74 74 72 75 91 93 93 116 127 127 126 128 141 138 139 139 133 154 151 172 188 208 218 250 256 269 274 Average Rating 126 | 5 8 10 11 12 34 39 32 37 69 70 71 71 79 87 88 103 120 118 104 120 130 133 132 137 132 142 145 164 173 198 209 221 234 259 248 On Entrance 105 | . 6 11 11 11 12 42 31 28 42 74 71 72 75 86 89 91 115 127 109 126 121 128 132 133 131 133 150 151 171 188 208 213 243 234 247 Avg Prop Armor Cover (%) 11 | 13 11 11 9 9 13 13 16 16 . . . . . . . . . . . . . . . . . 1 1 . . . . . . . . Naked Turns . | . . . . . . . . . . . . . . . . . . . . . . . . . . . . . . . . . . . . Heaviest Build 231 | 12 29 33 33 98 117 107 105 107 47 47 50 50 56 79 110 78 82 82 82 84 86 89 82 93 81 138 118 143 173 173 178 184 178 207 231 Greatest Support 208 | 20 16 16 10 10 80 56 26 32 53 53 53 56 56 56 56 78 84 84 84 84 84 84 84 82 82 133 173 173 173 176 180 200 202 208 206 Greatest Overweight (x) 10 | . 1 3 3 9 10 10 5 4 1 . . . 1 1 1 1 1 . . . 1 1 1 1 . 1 . . . . . 1 . 1 1 Average Overweight (x) . | . . 1 3 5 1 2 3 3 . . . . . . 1 . . . . . . . . . . . . . . . . . . . . Largest Inventory Capacity 35 | 8 15 15 15 25 25 25 25 35 25 15 15 15 15 20 25 25 20 20 20 20 20 20 20 20 20 25 25 25 25 25 25 25 25 25 25 Average Capacity 21 | 7 11 15 15 18 25 25 25 25 15 15 15 15 15 17 18 20 20 20 20 20 20 20 20 20 20 23 25 25 25 25 25 25 25 25 25 Most Carried 25 | 5 15 15 15 24 25 25 25 25 25 15 15 15 15 20 23 21 20 20 20 20 20 20 20 20 20 25 25 25 25 25 25 25 23 25 25 Average Carried 21 | 3 10 14 15 17 24 24 24 24 15 14 14 14 14 17 18 19 19 19 19 19 19 19 19 19 20 23 24 24 24 24 24 24 22 24 23 Final Capacity 25 | 8 15 15 15 25 25 25 25 25 15 15 15 15 15 20 25 20 20 20 20 20 20 20 20 20 20 25 25 25 25 25 25 25 25 25 25 Final Carried 25 | 5 15 15 15 22 24 25 25 25 15 15 15 15 15 20 22 20 20 18 20 19 20 20 20 20 20 25 25 25 25 25 25 25 23 25 23 Scrap Suit Usage (%) 1 | . . . . . 5 . . . . . . . . . . . . . . . . . . . . . . . . . . . . . . Parts Cannibalized 1 | . . . . . 1 . . . . . . . . . . . . . . . . . . . . . . . . . . . . . . Class Distribution -------------------- 16% | Alien-Gunner 12% | Mutant 11% | Wizard-Mutant 10% | Hacker-Mutant 9% | Scavenger-Mutant 6% | Commander-Mutant 6% | Hacker-Scout 5% | Scout 4% | Scavenger-Skirmisher 3% | Hacker-Skirmisher Dominant Class ---------------- Mutant | -10/Materials Mutant | -10/Mines Scavenger-Mutant | -10/Exiles Scavenger-Mutant | -9/Mines Mutant | -8/Materials Mutant | -8/Storage Commander-Mutant | -8/Recycling Commander-Mutant | -8/Scraptown Hacker-Scout | -6/Factory Hacker-Scout | -6/Waste Scout | -6/Factory Scout | -6/Extension Commander-Mutant | -6/Cetus Scavenger-Mutant | -6/Archives Scavenger-Skirmisher | -6/Hub_04(d) Hacker-Mutant | -5/Factory Hacker-Mutant | -5/Upper Caves Hacker-Mutant | -5/Upper Caves Hacker-Mutant | -5/Zhirov Hacker-Mutant | -4/Proximity Caves Wizard-Mutant | -4/Factory Wizard-Mutant | -4/Waste Wizard-Mutant | -4/Factory Hacker-Scout | -4/Upper Caves Hacker-Scout | -4/Upper Caves Wizard-Skirmisher | -4/Warlord Wizard-Mutant | -3/Proximity Caves Wizard-Skirmisher | -3/Research Hacker-Skirmisher | -3/Testing Scavenger-Skirmisher | -2/Research Scavenger-Skirmisher | -2/Quarantine Alien-Tank | -2/Section 7 Alien-Gunner | -1/Access Alien-Gunner | -1/Command Alien-Mutant | -1/Access_0 Resources | -11 -10 -10 -10 -9 -8 -8 -8 -8 -6 -6 -6 -6 -6 -6 -6 -5 -5 -5 -5 -4 -4 -4 -4 -4 -4 -4 -3 -3 -3 -2 -2 -2 -1 -1 -1 ----------- Run | Yrd Mat Min Exi Min Mat Sto Rec Scr Fac Was Fac Ext Cet Arc Hub Fac Upp Upp Zhi Pro Fac Was Fac Upp Upp War Pro Res Tes Res Qua Sec Acc Com Ac0 Matter Collected 17984 | 276 439 459 25 342 1425 509 183 234 460 328 58 480 170 346 360 548 219 173 220 124 664 272 433 226 99 574 186 292 824 446 899 1210 122 1847 2512 Remotely . | . . . . . . . . . . . . . . . . . . . . . . . . . . . . . . . . . . . . Salvage Created 23447 | 71 564 322 . 179 1845 1128 498 63 476 568 . 978 149 427 940 665 245 126 329 . 824 54 226 144 58 581 280 395 1893 1308 1387 2163 186 2525 1850 Parts 1188 | 4 38 32 . 21 83 57 20 2 27 11 . 58 6 33 47 32 7 5 4 . 36 1 15 1 3 12 5 14 99 54 86 120 14 129 112 Haulers Intercepted 14 | . 2 . . . 5 2 . . . . . . . . . . . . . . . . . . . . . 2 . 2 . 1 . . . Recyclers Shooed 19 | . 1 . . . 5 . . . 1 . . 1 . . . 2 . . . . 2 . . . . . . . . 2 . 1 . 4 . Parts Field Recycled . | . . . . . . . . . . . . . . . . . . . . . . . . . . . . . . . . . . . . Retrieved Matter . | . . . . . . . . . . . . . . . . . . . . . . . . . . . . . . . . . . . . Parts Self-Destructed 13 | . . . . . . . . . . . . . . . . . 3 4 1 . . . . 1 . . 4 . . . . . . . . Prevented 8 | . . . . . . . . . . . . . . . . . 4 4 . . . . . . . . . . . . . . . . . Parts Restored . | . . . . . . . . . . . . . . . . . . . . . . . . . . . . . . . . . . . . Kills | -11 -10 -10 -10 -9 -8 -8 -8 -8 -6 -6 -6 -6 -6 -6 -6 -5 -5 -5 -5 -4 -4 -4 -4 -4 -4 -4 -3 -3 -3 -2 -2 -2 -1 -1 -1 ------- Run | Yrd Mat Min Exi Min Mat Sto Rec Scr Fac Was Fac Ext Cet Arc Hub Fac Upp Upp Zhi Pro Fac Was Fac Upp Upp War Pro Res Tes Res Qua Sec Acc Com Ac0 Combat Hostiles Destroyed 278 | . 9 16 . 14 23 25 2 1 3 1 . 12 1 . 6 10 4 3 . . 9 . 6 . . 9 1 1 23 12 15 24 2 26 20 Guns 170 | . 7 5 . 6 23 25 1 1 3 1 . 12 . . 3 1 . . . . 3 . 2 . . 2 1 . 5 7 13 20 2 22 5 Cannons 32 | . . . . . . . 1 . . . . . . . 1 1 2 3 . . . . . . . 5 . 1 10 . 1 . . 2 5 AOE 47 | . 2 11 . 8 . . . . . . . . . . 2 8 . . . . 5 . 4 . . . . . 1 5 . . . . 1 Classes Destroyed 24 | 1 5 2 . 4 1 . 2 1 . 1 . . . . 1 . . . . . 1 . . . 1 3 . . 1 . . . . . . Worker 28 | . . 2 . 1 1 2 . . 1 . . 1 . . 6 2 . . . . 1 . 4 . . . . 1 . 4 . 1 . 1 . Builder 13 | . . . . . . . 1 . . . . . . . 1 . . . . . 1 . 1 . . . . . 4 2 . 3 . . . Tunneler 1 | . . . . 1 . . . . . . . . . . . . . . . . . . . . . . . . . . . . . . . Hauler 14 | . 2 . . . 5 2 . . . . . . . . . . . . . . . . . . . . . 2 . 2 . 1 . . . Recycler 27 | 1 1 . . . 3 . 3 . 3 . . . . . 3 3 . . . . 4 . . . . . . 1 . 1 1 . . 3 . Operator 18 | . 2 . . . 3 1 . . 1 . . . . 9 . . . . . . . . . . . . . . . 1 1 . . . . Watcher 25 | . 3 . . . 2 . . . . . . 3 2 . 1 2 . . . . . . . . . . . . 1 4 3 2 1 1 . Swarmer 63 | . 3 15 . 5 . . 3 . 3 . . . . . 2 8 . 3 . . 5 . 4 . . 1 1 . . 5 . . . 5 . Saboteur 1 | . . . . . . . . . . . . . . . . . . . . . . . . . . 1 . . . . . . . . . Grunt 66 | . 6 . . 1 15 16 . . . . . 6 . . 1 . 2 . . . . . . . . 2 . . 7 . 3 7 . . . Brawler 1 | . . . . . . . 1 . . . . . . . . . . . . . . . . . . . . . . . . . . . . Duelist 4 | . . . . 1 . 1 . . . . . . . . . . 1 . . . . . . . . 1 . . . . . . . . . Protector 1 | . . . . . . . . . . . . . . . 1 . . . . . . . . . . . . . . . . . . . . Researcher 1 | . . . . . . . . . . . . . . . . . . . . . . . . . . . . . 1 . . . . . . Sentry 30 | . . 1 . . 7 8 . . . . . 5 . . . 1 1 . . . . . . . . . . . . 2 . 3 . 2 . Demolisher 1 | . . . . 1 . . . . . . . . . . . . . . . . . . . . . . . . . . . . . . . Hunter 20 | . . . . . 1 . . . . . . 1 . . . 1 . . . . 2 . . . . . . . 2 4 2 4 . 3 . Programmer 47 | . . . . . . . . . . . . . . . . . . . . . 2 . 2 . . 1 . 1 14 1 6 8 2 10 . Compactor 1 | . . . . . . . . . . 1 . . . . . . . . . . . . . . . . . . . . . . . . . Cetus Guard 1 | . . . . . . . . . . . . . 1 . . . . . . . . . . . . . . . . . . . . . . Quarantine Guard 4 | . . . . . . . . . . . . . . . . . . . . . . . . . . . . . . . 4 . . . . M Guard 2 | . . . . . . . . . . . . . . . . . . . . . . . . . . . . . . . . . . 2 . Enhanced Grunt 11 | . . . . . . . . . . . . . . . . . . . . . . . . . . . . . . . . . . . 11 Enhanced Sentry 2 | . . . . . . . . . . . . . . . . . . . . . . . . . . . . . . . . . . . 2 Enhanced Hunter 4 | . . . . . . . . . . . . . . . . . . . . . . . . . . . . . . . . . . . 4 Lightning 2 | . . . . . . . . . . . . . . . 2 . . . . . . . . . . . . . . . . . . . . Combat Programmer 2 | . . . . . . . . . . . . . . . . . . . . . . . . . . . . . . . . . . 2 . Striker 2 | . . . . . . . . . . . . . . . . . . . . . . . . . . 2 . . . . . . . . . Executioner 3 | . . . . . . . . . . . . . . . . . . . . . . . . . . 1 . . . . . 2 . . . Bolteater 1 | . . . . . . . . 1 . . . . . . . . . . . . . . . . . . . . . . . . . . . Decomposer 1 | . . . . . . . . . . . . . . . . . . . . . . . . . 1 . . . . . . . . . . Samaritan 1 | . . . . . . . . . . . . . . . . . . . . . . . . . 1 . . . . . . . . . . Assembled 6 | . . . . 6 . . . . . . . . . . . . . . . . . . . . . . . . . . . . . . . Wasp 2 | . . . . . . . . . . 2 . . . . . . . . . . . . . . . . . . . . . . . . . Thug 2 | . . 2 . . . . . . . . . . . . . . . . . . . . . . . . . . . . . . . . . Martyr 3 | . . . . . . . . . . 2 . . . . . . . . . . . 1 . . . . . . . . . . . . . Guerrilla 1 | . . . . . . . . . . . . . . 1 . . . . . . . . . . . . . . . . . . . . . Best Kill Streak 12 | 1 2 3 . 6 3 12 1 1 4 1 . 2 1 4 11 8 3 3 . . 6 . 6 . . 5 1 1 8 9 2 6 2 11 3 Combat Bots Only 10 | . 2 3 . 6 3 10 1 1 2 1 . 1 1 . 2 4 3 3 . . 5 . 4 . . 5 1 1 7 5 2 6 2 7 3 Max Kills in Single Turn 9 | 1 2 3 . 3 1 2 2 1 1 1 . 1 1 2 9 3 1 1 . . 3 1 4 . 1 2 1 1 2 5 1 2 1 2 2 Gunslinging 1 | . . . . . . 1 . . . . . . . . . . . . . . . . . . . . . . . . . . . . . Exploded 4 | . 2 3 . 3 . . . . . . . . . . 2 3 . . . . 2 . 4 . . . . . 1 4 . . . . 1 Melee . | . . . . . . . . . . . . . . . . . . . . . . . . . . . . . . . . . . . . Uniques/NPCs Destroyed 5 | . . . . . . . . . . . . . . . . . . . . . . . . . . . . . . . . . . 2 3 MAIN.C Shell (-1/Command) MAIN.C (-1/Command) A8 (-1/Access_0) A6 (-1/Access_0) A5 (-1/Access_0) Combat | -11 -10 -10 -10 -9 -8 -8 -8 -8 -6 -6 -6 -6 -6 -6 -6 -5 -5 -5 -5 -4 -4 -4 -4 -4 -4 -4 -3 -3 -3 -2 -2 -2 -1 -1 -1 -------- Run | Yrd Mat Min Exi Min Mat Sto Rec Scr Fac Was Fac Ext Cet Arc Hub Fac Upp Upp Zhi Pro Fac Was Fac Upp Upp War Pro Res Tes Res Qua Sec Acc Com Ac0 Hostile Shots Fired 2620 | . 36 62 . 41 165 123 4 5 26 . 11 48 3 . 51 16 . 25 . 16 83 1 145 15 . 43 3 10 184 38 262 161 10 240 793 Missed 1259 | . 7 17 . 11 35 26 2 2 10 . 4 25 1 . 6 10 . 16 . 15 37 . 60 10 . 12 2 3 74 22 173 106 5 133 435 Hits 1361 | . 29 45 . 30 130 97 2 3 16 . 7 23 2 . 45 6 . 9 . 1 46 1 85 5 . 31 1 7 110 16 89 55 5 107 358 Melee 13 | . . . . . . 3 . 3 . . . . . . . . . . . . . 1 . . . 2 . . . . . 1 . . 3 Projectile 1348 | . 29 45 . 30 130 94 2 . 16 . 7 23 2 . 45 6 . 9 . 1 46 . 85 5 . 29 1 7 110 16 89 54 5 107 355 AOE 26 | . . . . 11 . 1 . . . . . . . . . . . . . . . . . . . . . . . . . . . 14 . Critical Strikes 80 | . 2 . . . 6 6 . 1 . . . 1 . . 2 . . . . . 2 1 5 . . 1 . . 15 . 1 . . 5 32 Actively Blocked 2 | . . . . . . . . . . . . . . . . . . . . . . . . . . . . . . . . . . 1 1 Part Disruptions 13 | . . . . . . . . . . . . . . . 1 . . . . . . . 1 . . . . . 5 . . . . 4 2 Actively Blocked 1 | . . . . . . . . . . . . . . . . . . . . . . . . . . . . . . . . . . 1 . Damage Taken 19112 | . 361 432 . 624 2051 1666 23 43 387 15 51 349 106 30 305 230 . 152 . 23 841 42 1103 46 . 729 10 73 450 89 842 753 64 1445 5777 Core 2953 | . 18 81 . 90 149 298 15 . 91 . . 50 . . 8 . . . . . 193 42 97 . . 128 . 22 49 5 13 454 . 176 974 Absorbed by Shields 6873 | . . . . . . . . . . . . . . . . . . . . . . . . 46 . 152 10 . 343 110 137 360 . 906 4809 Redirected to Shielding 469 | . . . . . . . . . . . . . . . . . . . . . . . . . . . . . . . 115 . 5 80 269 Ignored by Resistances 7561 | . . . . . . . . . . . . . . . 1371 . . . . . 167 . 483 12 . . . 88 1658 183 260 597 56 1942 744 Regen/Repaired (Parts) 4762 | . . . . . 39 . . . 400 16 . 149 . . . . . . . . 49 189 41 . . 144 . . . . 4 1219 . 268 2244 Core Remaining (%) 66 | 100 . . . 24 . . . 16 . . . . . . 82 . . . . 100 . . . . . . 60 . 94 . . 55 . . . Volleys Fired 1980 | 4 58 47 . 28 187 81 16 11 23 35 8 144 23 43 60 47 10 9 15 26 76 5 66 22 24 42 38 52 145 46 128 87 14 160 200 Largest 3 | 2 2 2 . 2 2 2 2 2 2 2 2 2 1 2 2 2 1 1 1 1 2 2 2 2 1 2 2 2 2 1 2 1 1 3 2 Hottest 300 | 40 40 40 . 95 81 140 100 100 105 56 113 109 81 70 125 125 70 90 35 90 125 140 140 135 105 124 135 135 135 80 100 300 300 300 300 Shots Fired 2627 | 8 115 86 1 51 335 159 32 17 27 70 10 173 23 64 101 54 10 10 15 26 98 9 78 24 25 44 40 76 194 46 129 87 14 170 206 Gun 1697 | 8 114 77 1 44 325 156 23 6 13 70 2 157 10 64 78 14 . . 15 6 43 4 28 13 20 11 38 24 57 31 71 42 5 113 14 Cannon 869 | . . . . . 7 3 9 11 12 . 8 16 13 . 23 35 10 10 . 20 52 5 47 10 5 32 2 52 132 13 58 43 9 55 177 Launcher 56 | . 1 9 . 7 3 . . . 2 . . . . . . 5 . . . . 3 . 3 . . . . . 5 2 . 2 . 2 12 Special 5 | . . . . . . . . . . . . . . . . . . . . . . . . 1 . 1 . . . . . . . . 3 Kinetic 1526 | 8 114 77 1 40 293 76 23 6 21 70 2 92 . 64 78 14 . . 15 6 43 4 28 4 20 3 38 24 57 31 71 42 5 67 89 Thermal 824 | . . . . 4 32 83 9 11 4 . 8 80 10 . 23 33 . 1 . 20 46 4 44 20 5 7 2 50 113 13 52 39 9 32 70 Explosive 35 | . 1 9 . 7 3 . . . 2 . . . . . . 5 . . . . 3 . 3 . . . . . . 2 . . . . . Electromagnetic 181 | . . . . . 7 . . . . . . 1 13 . . 2 10 9 . . 6 1 3 . . 32 . 2 24 . 6 6 . 15 44 Entropic 57 | . . . . . . . . . . . . . . . . . . . . . . . . . . 1 . . . . . . . 56 . Robot Hit Streak 42 | 2 8 11 . 5 15 15 4 2 6 9 1 9 5 8 5 7 3 11 26 27 32 4 6 4 15 21 5 10 19 19 40 42 19 29 37 Robot Miss Streak 7 | 2 4 4 3 4 4 7 6 3 2 2 2 5 5 3 5 2 3 . . . 4 1 3 . . 2 4 4 4 4 3 3 1 6 3 Penetration Max 3 | . . . . . . . . . . 1 . . . 1 1 1 1 1 1 . 1 . . . 1 1 . 1 1 3 1 1 . 1 1 Secondary Targets 7 | . . . . 1 . 3 . . . . . . . . 1 . . . . . 1 . 1 . . . . . . . . . . . . Max Gunslinging Chain 1 | . . . . 1 . 1 . . . . . . . . 1 . . . . . 1 . 1 . . . . . . . . . . . . Capacitor 235 | . . . . . . . . . . . . . . . . . . . . . . . . . . . . . . . 27 2 9 98 99 Shots Hit Robots 1445 | 4 68 48 . 26 224 125 13 6 13 57 1 83 14 38 39 13 5 8 15 1 32 7 21 3 11 24 9 34 83 23 71 41 5 132 148 Core Hits 982 | 2 33 28 . 30 83 156 10 3 8 16 . 38 3 19 30 29 3 3 8 1 23 5 18 2 3 11 5 10 49 45 44 53 4 105 102 Critical Kills 123 | . . . . 1 . . . . . . . 1 . 4 3 . . . 1 . 6 . . . . . 1 . 7 20 18 27 3 23 8 Critical Parts Destroyed 150 | . 1 . . 1 1 . . . . . . 1 . 3 4 2 . . . . 1 . 3 . 1 . 3 . 11 25 42 15 2 30 4 Critical Strikes 304 | . 1 . . 2 3 . . . . 2 . 5 . 7 7 3 3 2 2 . 9 1 3 . 1 2 4 . 18 46 63 42 5 56 17 Burn 5 | . . . . . 2 . . . . . . 3 . . . . . . . . . . . . . . . . . . . . . . . Meltdown 2 | . . . . . . . . . . . . . . . . . . . . . . . . . . . . . 2 . . . . . . Destroy 276 | . 1 . . 2 1 . . . . . . 2 . 7 7 2 . . 2 . 7 . 3 . 1 . 4 . 16 46 63 42 5 52 13 Blast 4 | . . . . . . . . . . . . . . . . . . . . . . . . . . . . . . . . . . . 4 Corrupt 12 | . . . . . . . . . . . . . . . . 1 3 2 . . 2 1 . . . 2 . . . . . . . 1 . Sever 2 | . . . . . . . . . . 2 . . . . . . . . . . . . . . . . . . . . . . . . . Detonate 3 | . . . . . . . . . . . . . . . . . . . . . . . . . . . . . . . . . . 3 . Melee Attacks 39 | . . . . . . . . 7 25 5 . . . . . . . . . . 1 . . . . . . . . . . . . . 1 Impact . | . . . . . . . . . . . . . . . . . . . . . . . . . . . . . . . . . . . . Slashing 37 | . . . . . . . . 7 24 5 . . . . . . . . . . . . . . . . . . . . . . . . 1 Piercing . | . . . . . . . . . . . . . . . . . . . . . . . . . . . . . . . . . . . . Sneak Attacks 9 | . . . . . . . . . 3 5 . . . . . . . . . . 1 . . . . . . . . . . . . . . Combat Hostiles . | . . . . . . . . . . . . . . . . . . . . . . . . . . . . . . . . . . . . Follow-up Attacks . | . . . . . . . . . . . . . . . . . . . . . . . . . . . . . . . . . . . . Damage Inflicted 47520 | 46 864 1367 . 742 3134 2013 342 110 368 1639 . 1960 356 926 2118 1381 331 371 431 25 1727 218 1214 79 350 1331 324 1199 4159 1037 1538 1009 71 5812 8928 Guns 22528 | 46 792 518 . 258 2990 1963 192 56 150 1169 . 1960 142 926 1024 297 . . 431 25 639 105 554 79 350 280 324 551 1235 451 744 463 71 3641 102 Cannons 17423 | . . . . . 144 50 150 54 . . . . 214 . 76 217 331 371 . . 536 113 229 . . 1051 . 648 2285 . 794 124 . 1963 8073 Explosions 6815 | . 72 849 . 484 . . . . . . . . . . 1018 867 . . . . 552 . 431 . . . . . 639 586 . 422 . 208 687 Melee 754 | . . . . . . . . . 218 470 . . . . . . . . . . . . . . . . . . . . . . . . 66 Ramming . | . . . . . . . . . . . . . . . . . . . . . . . . . . . . . . . . . . . . Kinetic 22106 | 46 792 518 . 215 2671 860 192 56 106 1169 . 963 . 926 1024 297 . . 431 25 639 105 554 79 350 59 324 551 1235 451 744 463 71 1333 4857 Thermal 11354 | . . . . 43 319 1153 150 54 44 . . 997 142 . 76 146 . . . . 270 109 184 . . 221 . 603 1738 . 655 . . 1598 2852 Explosive 3758 | . 72 849 . 484 . . . . . . . . . . . 835 . . . . 501 . 431 . . . . . . 586 . . . . . Electromagnetic 7003 | . . . . . 144 . . . . . . . 214 . 1018 103 331 371 . . 317 4 45 . . 1051 . 45 1186 . 139 546 . 336 1153 Impact . | . . . . . . . . . . . . . . . . . . . . . . . . . . . . . . . . . . . . Slashing 754 | . . . . . . . . . 218 470 . . . . . . . . . . . . . . . . . . . . . . . . 66 Piercing . | . . . . . . . . . . . . . . . . . . . . . . . . . . . . . . . . . . . . Entropic 2545 | . . . . . . . . . . . . . . . . . . . . . . . . . . . . . . . . . . 2545 . Highest Corruption 37 | . 3 3 3 3 . 3 3 . . . . . . 3 . 1 1 1 1 1 . . 2 2 2 2 10 . 17 1 1 1 . 37 9 Average Corruption 3 | . 2 3 3 3 . 2 3 . . . . . . 1 . 1 1 1 1 1 . . 1 2 2 2 5 . 6 1 1 1 . 11 8 Corruption Purged 67 | . . . . . . . . . . . . . . 4 . . . . . . . . . . . . . . . . . . . 63 . Corruption Blocked . | . . . . . . . . . . . . . . . . . . . . . . . . . . . . . . . . . . . . Effects 246 | . 16 20 10 27 . 10 22 . . . . . . . . 5 7 14 2 2 . . 8 13 6 . . . 22 . 15 1 . 37 9 Message Errors 58 | . 4 8 1 9 . 3 6 . . . . . . . . . 1 4 1 1 . . 1 2 . . . . 3 . 4 1 . 7 2 Matter Fused 62 | . 4 4 . 9 . 2 6 . . . . . . . . 1 1 4 . . . . 4 2 1 . . . 6 . 3 . . 12 3 Heat Flow Errors 29 | . 1 2 4 2 . 1 . . . . . . . . . 2 1 2 . . . . . 2 3 . . . 2 . 3 . . 4 . Energy Discharges 27 | . 2 3 2 2 . 1 2 . . . . . . . . . . 1 . 1 . . . 1 . . . . 4 . 1 . . 7 . Parts Rejected 2 | . . . . 1 . . . . . . . . . . . . . . . . . . . . . . . . 1 . . . . . . Parts Fused 8 | . 1 . 1 . . 1 1 . . . . . . . . . 1 . . . . . . . . . . . 1 . 1 . . 1 . Data Loss (minor) 30 | . 1 2 1 1 . 1 3 . . . . . . . . 2 2 2 1 . . . 1 6 1 . . . 1 . 1 . . 4 . Data Loss (major) 8 | . 1 . . 1 . . 1 . . . . . . . . . 1 . . . . . . . . . . . 2 . . . . 1 1 Misfires 12 | . . 1 1 2 . . 1 . . . . . . . . . . 1 . . . . 1 . 1 . . . . . 1 . . . 3 Alerts 6 | . 2 . . . . . 1 . . . . . . . . . . . . . . . 1 . . . . . 2 . . . . . . Weapon Failures 4 | . . . . . . 1 1 . . . . . . . . . . . . . . . . . . . . . . . 1 . . 1 . Overload Shots 2 | . . . . . . . . . . . . . . . . . . . . . . . . . . . . . . . . . . 2 . Overflow Damage 802 | . . 59 . 34 . . 9 . 58 18 . . . . 31 4 5 42 . . 20 . . . . 11 . . 130 35 . . . 258 88 Projectiles 555 | . . . . . . . 9 . . . . . . . . . 5 42 . . 12 . . . . 11 . . 130 . . . . 258 88 Explosions 171 | . . 59 . 34 . . . . . . . . . . 31 4 . . . . 8 . . . . . . . . 35 . . . . . Melee 76 | . . . . . . . . . 58 18 . . . . . . . . . . . . . . . . . . . . . . . . . Knockbacks 34 | . . . . . . . . . . . . . . . . . . . . . . . . . . . . . . . . . . 4 30 Impact . | . . . . . . . . . . . . . . . . . . . . . . . . . . . . . . . . . . . . Kinetic 34 | . . . . . . . . . . . . . . . . . . . . . . . . . . . . . . . . . . 4 30 Secondary . | . . . . . . . . . . . . . . . . . . . . . . . . . . . . . . . . . . . . Self-Inflicted Damage 320 | . . 42 . . . . . . . . . . . . 6 59 . . . . 76 . 137 . . . . . . . . . . . . Shots 9 | . . 2 . . . . . . . . . . . . 1 2 . . . . 2 . 2 . . . . . . . . . . . . Rammed . | . . . . . . . . . . . . . . . . . . . . . . . . . . . . . . . . . . . . Targets Rammed . | . . . . . . . . . . . . . . . . . . . . . . . . . . . . . . . . . . . . Kicked . | . . . . . . . . . . . . . . . . . . . . . . . . . . . . . . . . . . . . Crushed . | . . . . . . . . . . . . . . . . . . . . . . . . . . . . . . . . . . . . Highest Temperature 404 | . 255 258 274 281 192 204 44 56 45 16 115 232 . 23 330 219 258 223 18 104 202 250 404 175 229 5 . 76 302 . 291 146 212 306 324 Average Temperature 70 | . 107 54 111 77 40 63 19 30 12 8 40 79 . 23 169 76 148 94 8 29 50 89 76 39 66 5 . 35 78 . 86 72 132 84 116 Received Heat Transfer 2724 | . 219 18 . 66 1044 747 . . 72 . 12 39 . . 39 . . . . . . . 63 4 . 61 . . 67 16 11 18 . 165 63 Effects 9 | . . . . . . . . . . . . 1 . . 3 . . . . . . . 1 . . . . . 1 . . . . 3 . Energy Bleed 4 | . . . . . . . . . . . . 1 . . 2 . . . . . . . . . . . . . 1 . . . . . . Interference 4 | . . . . . . . . . . . . . . . 1 . . . . . . . . . . . . . . . . . . 3 . Short Circuit 1 | . . . . . . . . . . . . . . . . . . . . . . . 1 . . . . . . . . . . . . Siege Activations . | . . . . . . . . . . . . . . . . . . . . . . . . . . . . . . . . . . . . Martial Activations . | . . . . . . . . . . . . . . . . . . . . . . . . . . . . . . . . . . . . Shielding Activations . | . . . . . . . . . . . . . . . . . . . . . . . . . . . . . . . . . . . . Robots Disrupted 1 | . . . . . . . . . . . . . . . . . . . . . . . . . . . . . . . . 1 . . . Combat Hostiles 1 | . . . . . . . . . . . . . . . . . . . . . . . . . . . . . . . . 1 . . . Robots Corrupted 31 | . . . . . . . . . . . . . 1 . 2 . 2 1 . . 1 . . . . 2 . . 6 . 1 4 . 2 9 Combat Hostiles 28 | . . . . . . . . . . . . . 1 . . . 2 1 . . 1 . . . . 2 . . 5 . 1 4 . 2 9 Parts Fried 78 | . . . . . 1 . . . 1 . . . 1 . 6 2 1 3 . . 8 . . . . 5 . . 14 . 2 9 . 3 22 Impact Corruptions . | . . . . . . . . . . . . . . . . . . . . . . . . . . . . . . . . . . . . Robots Melted 2 | . . . . . . . . . . . . . . . . . . . . . . . . . . . . . 2 . . . . . . Combat Hostiles 2 | . . . . . . . . . . . . . . . . . . . . . . . . . . . . . 2 . . . . . . Parts Melted 9 | . . . . . . . . . . . . . . . . . . . . . . . . . . 1 . . 8 . . . . . . Heat Transferred 8507 | . . . . 74 962 1449 222 111 100 . . 1776 222 . . 50 . . . . 50 111 185 . . 241 . 592 1480 . 163 . . 283 436 Parts Sabotaged . | . . . . . . . . . . . . . . . . . . . . . . . . . . . . . . . . . . . . Parts Stolen . | . . . . . . . . . . . . . . . . . . . . . . . . . . . . . . . . . . . . Parts Stripped . | . . . . . . . . . . . . . . . . . . . . . . . . . . . . . . . . . . . . Power Chain Reactions 4 | . . . . . . . . . . . . . . . . 1 . . . . 1 . . . . . . . . . . . . 1 1 Alert | -11 -10 -10 -10 -9 -8 -8 -8 -8 -6 -6 -6 -6 -6 -6 -6 -5 -5 -5 -5 -4 -4 -4 -4 -4 -4 -4 -3 -3 -3 -2 -2 -2 -1 -1 -1 ------- Run | Yrd Mat Min Exi Min Mat Sto Rec Scr Fac Was Fac Ext Cet Arc Hub Fac Upp Upp Zhi Pro Fac Was Fac Upp Upp War Pro Res Tes Res Qua Sec Acc Com Ac0 Maximum Alert Level 3 | . . 1 . . 1 2 . . . . . 2 2 1 1 1 . . . . 1 . 1 . . . . . 2 2 1 2 2 3 . Low Security (%) 60 | 100 100 95 . 100 90 44 100 . 100 100 100 87 . 86 70 75 . . . . 90 100 64 . . . . 100 59 . 32 41 . 2 . Level 1 15 | . . 4 . . 9 7 . . . . . 6 62 13 29 24 . . . . 9 . 35 . . . . . 6 47 67 17 91 7 . Level 2 15 | . . . . . . 48 . . . . . 6 37 . . . . . . . . . . . . . . . 33 52 . 40 8 47 . Level 3 8 | . . . . . . . . . . . . . . . . . . . . . . . . . . . . . . . . . . 42 . Level 4 . | . . . . . . . . . . . . . . . . . . . . . . . . . . . . . . . . . . . . Level 5 . | . . . . . . . . . . . . . . . . . . . . . . . . . . . . . . . . . . . . High Security . | . . . . . . . . . . . . . . . . . . . . . . . . . . . . . . . . . . . . Max Security . | . . . . . . . . . . . . . . . . . . . . . . . . . . . . . . . . . . . . Peak Influence 690 | 5 79 220 . 80 356 538 185 . 153 28 185 621 458 225 373 316 . . . . 218 50 332 . . . . 40 604 586 346 690 413 594 . Initial 413 | . . . . . 1 149 162 . . 28 . 32 347 156 18 32 . . . . 30 50 . . . . . . . 337 324 181 413 159 . Average 144 | 1 19 95 . 13 95 318 58 . 92 2 128 89 385 152 134 101 . . . . 89 8 155 . . . . 4 201 408 240 331 341 369 . Influence Increases 14183 | 5 380 538 . 237 859 768 207 . 414 . 327 1416 350 285 738 602 120 80 5 150 517 72 764 40 . 300 32 188 1006 481 729 967 170 1081 355 Destroy 0b10 Robot/C 5920 | . 180 340 . 160 460 540 100 . 100 . 120 540 160 80 220 200 80 60 . . 180 . 120 . . 180 20 20 480 240 300 480 40 520 . Destroy 0b10 Robot/NC 695 | 5 40 10 . 10 70 25 35 . 25 . 5 30 10 45 60 35 . 5 5 . 30 . 25 10 . . 10 20 25 70 25 35 5 25 . Destroy Leader 1096 | . 60 50 . 20 154 134 . . 10 . 12 66 . . 42 34 10 . . . 30 . 20 . . . . 14 82 62 86 96 12 102 . Allied During Kill 821 | . . 20 . . . 8 23 . 2 . 81 330 140 80 126 9 . . . . . . . . . . 2 . . . . . . . . Successful Hack 347 | . 31 . . . 5 . . . 25 . 11 14 . . . 14 . . . . 10 . . . . . . 66 75 7 24 14 27 24 . Select Force Hacks 30 | . . . . . . . 30 . . . . . . . . . . . . . . . . . . . . . . . . . . . . Disable Machine 1185 | . . 45 . 15 30 15 15 . 30 . 30 45 . 60 120 45 . . . . 75 . 90 . . . . . 150 15 105 165 30 45 60 Anti-Garrison Action 50 | . . . . . . . . . . . . . . . . . . . . . . . . . . . . . . . . . . 50 . Destroy Structure 2224 | . 9 58 . 32 35 1 4 . 42 . 8 46 25 20 155 160 . . . . 132 72 254 . . . . 68 134 87 99 162 56 270 295 Partial Spotted 105 | . . . . . . . . . 30 . 30 . . . . . . . . . . . 45 . . . . . . . . . . . . Lose Combat Pursuer 1710 | . 60 15 . . 105 45 . . 150 . 30 345 15 . 15 105 30 15 . 150 60 . 210 30 . 120 . . 60 . 90 15 . 45 . Influence Decreases 13878 | 5 380 440 98 232 510 705 624 . 333 81 260 862 580 621 727 404 384 80 5 102 422 215 432 369 3 188 144 188 405 504 984 600 611 510 870 Entered New Map 3525 | . . . 98 . 4 205 255 . . 53 . 35 274 235 37 34 99 . . . 18 93 . 124 2 . 112 . . 264 254 142 277 90 820 Time Decay 8935 | 5 380 440 . 192 476 380 329 . 313 28 150 677 206 286 370 340 285 80 5 102 394 84 392 245 1 178 32 188 395 230 580 458 334 380 . Lost Part 310 | . . . . 40 30 80 . . . . . . . . . 20 . . . . 10 10 10 . . 10 . . 10 . . . . 40 50 Lost Ally 658 | . . . . . . 40 40 . 20 . 110 150 100 100 20 10 . . . . . 28 30 . . . . . . 10 . . . . . Purge Threat 450 | . . . . . . . . . . . . . . . 300 . . . . . . . . . . . . . . . 150 . . . . Squads Dispatched 63 | . 2 . . . 6 6 . . 2 . 1 3 . . 1 4 . . . . 4 . 6 . . . . 2 12 2 4 4 2 2 . Investigation 11 | . . . . . 3 . . . . . . . . . . 2 . . . . 2 . 2 . . . . 1 1 . . . . . . Extermination 25 | . . . . . . . . . 2 . . . . . 1 2 . . . . 2 . 2 . . . . . 5 1 3 3 2 2 . Reinforcement 19 | . 2 . . . 2 2 . . . . 1 2 . . . . . . . . . . 2 . . . . 1 5 1 1 . . . . Assault 5 | . . . . . . 2 . . . . . 1 . . . . . . . . . . . . . . . . 1 . . 1 . . . Garrison 3 | . . . . . 1 2 . . . . . . . . . . . . . . . . . . . . . . . . . . . . . Intercept . | . . . . . . . . . . . . . . . . . . . . . . . . . . . . . . . . . . . . Searches Triggered . | . . . . . . . . . . . . . . . . . . . . . . . . . . . . . . . . . . . . Unchained Authorized 2 | . . . . . . . . . . . . . . . . . . . . . . . . . . . . . 1 . 1 . . . . Construction Impeded 1 | . . . . . . . . . . . . 1 . . . . . . . . . . . . . . . . . . . . . . . Haulers Reinforced 1 | . . . . . . . . . . . . . . . . . . . . . . . . . . . . . . 1 . . . . . Active Scanning Responses . | . . . . . . . . . . . . . . . . . . . . . . . . . . . . . . . . . . . . Cargo Convoy Interrupts . | . . . . . . . . . . . . . . . . . . . . . . . . . . . . . . . . . . . . Stealth | -11 -10 -10 -10 -9 -8 -8 -8 -8 -6 -6 -6 -6 -6 -6 -6 -5 -5 -5 -5 -4 -4 -4 -4 -4 -4 -4 -3 -3 -3 -2 -2 -2 -1 -1 -1 --------- Run | Yrd Mat Min Exi Min Mat Sto Rec Scr Fac Was Fac Ext Cet Arc Hub Fac Upp Upp Zhi Pro Fac Was Fac Upp Upp War Pro Res Tes Res Qua Sec Acc Com Ac0 Distress Signals 49 | . 2 1 . . . 5 . . 1 . 1 . 1 . 2 3 . . . . . . 4 . . . . 4 3 . . 1 . 21 . Communications Jammed 32 | . . . . . . . . . . . . . . . . . . . . . . . 5 . . . . . 16 2 5 4 . . . Distress Signals 32 | . . . . . . . . . . . . . . . . . . . . . . . 5 . . . . . 16 2 5 4 . . . Times Spotted 624 | . 23 17 . 21 54 42 5 11 18 6 8 39 9 15 13 20 2 6 . 6 14 6 29 2 . 67 1 7 37 14 30 29 3 29 41 Peak Tracking Total 12 | . 3 3 . 9 5 12 2 5 4 3 8 3 4 1 4 6 3 5 . 4 6 4 8 1 . 12 1 3 5 3 4 6 2 7 6 Tactical Retreats 82 | . 3 1 . 2 4 1 . . 6 . 2 17 1 . 1 2 2 1 . 3 3 1 11 2 . 6 . . 3 . 6 1 . 3 . Traps | -11 -10 -10 -10 -9 -8 -8 -8 -8 -6 -6 -6 -6 -6 -6 -6 -5 -5 -5 -5 -4 -4 -4 -4 -4 -4 -4 -3 -3 -3 -2 -2 -2 -1 -1 -1 ------- Run | Yrd Mat Min Exi Min Mat Sto Rec Scr Fac Was Fac Ext Cet Arc Hub Fac Upp Upp Zhi Pro Fac Was Fac Upp Upp War Pro Res Tes Res Qua Sec Acc Com Ac0 Traps Triggered 27 | . 2 . . . 2 4 . . 6 . . 4 . . 1 1 . . . . 1 . . . . . . . . 1 1 1 . 3 . Indirectly . | . . . . . . . . . . . . . . . . . . . . . . . . . . . . . . . . . . . . Trap Hack Attempts . | . . . . . . . . . . . . . . . . . . . . . . . . . . . . . . . . . . . . Triggered . | . . . . . . . . . . . . . . . . . . . . . . . . . . . . . . . . . . . . Disarmed . | . . . . . . . . . . . . . . . . . . . . . . . . . . . . . . . . . . . . Reprogrammed . | . . . . . . . . . . . . . . . . . . . . . . . . . . . . . . . . . . . . Reused . | . . . . . . . . . . . . . . . . . . . . . . . . . . . . . . . . . . . . Traps Extracted . | . . . . . . . . . . . . . . . . . . . . . . . . . . . . . . . . . . . . Installed . | . . . . . . . . . . . . . . . . . . . . . . . . . . . . . . . . . . . . Triggered . | . . . . . . . . . . . . . . . . . . . . . . . . . . . . . . . . . . . . Machines | -11 -10 -10 -10 -9 -8 -8 -8 -8 -6 -6 -6 -6 -6 -6 -6 -5 -5 -5 -5 -4 -4 -4 -4 -4 -4 -4 -3 -3 -3 -2 -2 -2 -1 -1 -1 ---------- Run | Yrd Mat Min Exi Min Mat Sto Rec Scr Fac Was Fac Ext Cet Arc Hub Fac Upp Upp Zhi Pro Fac Was Fac Upp Upp War Pro Res Tes Res Qua Sec Acc Com Ac0 Machines Disabled 92 | . . 3 . 1 2 1 1 5 2 . 2 5 . 4 8 3 . . . . 5 . 6 . 1 1 . . 10 1 7 13 2 5 4 Max in Single Turn 4 | . . 3 . 1 1 1 1 1 1 . . 1 . 1 4 2 . . . . 2 . 3 . 1 1 . . 1 1 1 2 2 2 1 Garrison Access 8 | . . . . . . . . . 1 . . . . . 1 1 . . . . 1 . . . . . . 2 . 1 1 . . . . Phase Generator 1 | . . . . . . . . . . . . . . . . . . . . . . . . . . . . . . . . . . 1 . Network Hub 1 | . . . . . . . . . . . . . . . 1 . . . . . . . . . . . . . . . . . . . . Energy Cycler 1 | . . . . . . . . . . . . 1 . . . . . . . . . . . . . . . . . . . . . . . Machines Repaired . | . . . . . . . . . . . . . . . . . . . . . . . . . . . . . . . . . . . . Machines Dismantled . | . . . . . . . . . . . . . . . . . . . . . . . . . . . . . . . . . . . . Machines Sabotaged . | . . . . . . . . . . . . . . . . . . . . . . . . . . . . . . . . . . . . Overloaded Fab Kills . | . . . . . . . . . . . . . . . . . . . . . . . . . . . . . . . . . . . . Hacking | -11 -10 -10 -10 -9 -8 -8 -8 -8 -6 -6 -6 -6 -6 -6 -6 -5 -5 -5 -5 -4 -4 -4 -4 -4 -4 -4 -3 -3 -3 -2 -2 -2 -1 -1 -1 --------- Run | Yrd Mat Min Exi Min Mat Sto Rec Scr Fac Was Fac Ext Cet Arc Hub Fac Upp Upp Zhi Pro Fac Was Fac Upp Upp War Pro Res Tes Res Qua Sec Acc Com Ac0 Machines Accessed 106 | . 6 . . . 8 2 1 1 9 . 3 6 . . 2 6 . 1 4 . 6 . 9 1 2 1 . 6 11 2 8 4 4 3 . Terminals 63 | . 6 . . . 4 1 . . 5 . 2 5 . . 1 3 . 1 . . 2 . 6 . . . . 3 7 1 5 4 4 3 . Fabricators 9 | . . . . . . . . . 1 . . . . . . 2 . . . . 2 . 2 . . . . 1 1 . . . . . . Repair Stations 5 | . . . . . 1 . . . 1 . . 1 . . . . . . . . 1 . . . . . . . 1 . . . . . . Recycling Units 2 | . . . . . 1 . 1 . . . . . . . . . . . . . . . . . . . . . . . . . . . . Scanalyzers 7 | . . . . . 2 . . . 1 . . . . . . . . . . . . . 1 . . . . . 1 . 2 . . . . Garrison Access 11 | . . . . . . 1 . . 1 . 1 . . . 1 1 . . . . 1 . . . . . . 2 1 1 1 . . . . Total Hacks 277 | . 12 . . . 20 4 2 1 17 . 10 10 . . 4 21 . 1 17 . 26 . 28 1 2 1 . 30 28 8 13 9 8 4 . Successful 170 | . 5 . . . 11 . 1 1 13 . 4 6 . . 4 18 . 1 17 . 19 . 22 1 2 1 . 20 11 4 4 2 1 2 . Failed 103 | . 7 . . . 8 4 1 . 4 . 6 4 . . . 2 . . . . 6 . 5 . . . . 10 17 4 9 7 7 2 . Catastrophic 21 | . 3 . . . 1 . . . 1 . 1 . . . . . . . . . . . 1 . . . . 3 2 1 5 2 1 . . Database Lockouts 4 | . . . . . 1 . . . . . . . . . . 1 . . . . 1 . 1 . . . . . . . . . . . . Manual 124 | . 12 . . . 10 3 2 . 5 . 7 4 1 . 2 15 . . . . 12 . 16 . . . . 18 4 7 2 . 4 . . Terminals 166 | . 12 . . . 10 2 . . 8 . 8 8 . . 3 14 . 1 . . 11 . 17 . . . . 21 16 7 7 9 8 4 . Fabricators 37 | . . . . . . . . . 1 . . . . . . 6 . . . . 10 . 9 . . . . 7 4 . . . . . . Repair Stations 10 | . . . . . 2 . . . 2 . . 2 . . . . . . . . 2 . . . . . . . 2 . . . . . . Recycling Units 3 | . . . . . 1 . 2 . . . . . . . . . . . . . . . . . . . . . . . . . . . . Scanalyzers 23 | . . . . . 7 . . . 5 . . . . . . . . . . . . . 2 . . . . . 4 . 5 . . . . Garrison Access 16 | . . . . . . 2 . . 1 . 2 . . . 1 1 . . . . 3 . . . . . . 2 2 1 1 . . . . Terminal Hacks 80 | . 3 . . . . . . 1 3 . 2 3 . . 3 8 . 1 17 . 5 . 7 1 2 1 . 9 6 2 1 2 1 2 . Record 7 | . . . . . . . . . . . . . . . . . . 1 5 . . . . . 1 . . . . . . . . . . Part Schematic 15 | . 3 . . . . . . . 1 . . . . . . 1 . . 4 . 1 . 2 . . . . 2 1 . . . . . . Robot Analysis 6 | . . . . . . . . . . . . . . . . . . . 4 . . . . . . . . 2 . . . . . . . Prototype ID Bank 4 | . . . . . . . . . . . . . . . . . . . 4 . . . . . . . . . . . . . . . . Open Door 8 | . . . . . . . . . 1 . . 1 . . . . . . . . . . . 1 1 1 . . 1 . . 1 . 1 . Branch Access Points 7 | . . . . . . . . . . . 1 . . . . 1 . . . . 1 . 1 . . . . 1 . 1 . . 1 . . Machine Index 2 | . . . . . . . . . . . . . . . . . . . . . 1 . . . . . . 1 . . . . . . . Terminal Index 2 | . . . . . . . . . . . . . . . . 1 . . . . . . 1 . . . . . . . . . . . . Fabricator Index 2 | . . . . . . . . . . . . . . . . 1 . . . . . . . . . . . . 1 . . . . . . Alert Level 1 | . . . . . . . . . . . . . . . 1 . . . . . . . . . . . . . . . . . . . . Unreport Threat 3 | . . . . . . . . . . . . . . . 2 . . . . . . . . . . . . . . . 1 . . . . Locate Traps 4 | . . . . . . . . . . . . 1 . . . 1 . . . . . . . . . . . . . . . 1 . 1 . Recall Investigation 1 | . . . . . . . . . . . . . . . . 1 . . . . . . . . . . . . . . . . . . . Recall Extermination 3 | . . . . . . . . . . . . . . . . 1 . . . . 1 . . . . . . . 1 . . . . . . Recall Assault 1 | . . . . . . . . . . . . 1 . . . . . . . . . . . . . . . . . . . . . . . Registered Components 7 | . . . . . . . . . 1 . 1 . . . . 1 . . . . 1 . 1 . . . . 1 . 1 . . . . . Registered Prototypes 1 | . . . . . . . . . . . . . . . . . . . . . . . . . . . . 1 . . . . . . . Zone Layout 5 | . . . . . . . . . . . . . . . . . . . . . . . 2 . . . . 1 2 . . . . . . Proto ID Catalog 1 | . . . . . . . . 1 . . . . . . . . . . . . . . . . . . . . . . . . . . . Fabricator Hacks 25 | . . . . . . . . . 1 . . . . . . 4 . . . . 7 . 6 . . . . 6 1 . . . . . . Network Status 3 | . . . . . . . . . 1 . . . . . . . . . . . 1 . 1 . . . . . . . . . . . . Load Schematic 13 | . . . . . . . . . . . . . . . . 2 . . . . 4 . 3 . . . . 3 1 . . . . . . Build 9 | . . . . . . . . . . . . . . . . 2 . . . . 2 . 2 . . . . 3 . . . . . . . Repair Station Hacks 9 | . . . . . 2 . . . 2 . . 2 . . . . . . . . 2 . . . . . . . 1 . . . . . . Scan Component 5 | . . . . . 1 . . . 1 . . 1 . . . . . . . . 1 . . . . . . . 1 . . . . . . Repair 4 | . . . . . 1 . . . 1 . . 1 . . . . . . . . 1 . . . . . . . . . . . . . . Recycling Unit Hacks 1 | . . . . . 1 . . . . . . . . . . . . . . . . . . . . . . . . . . . . . . Retrieve Components 1 | . . . . . 1 . . . . . . . . . . . . . . . . . . . . . . . . . . . . . . Scanalyzer 17 | . . . . . 5 . . . 5 . . . . . . . . . . . . . 2 . . . . . 3 . 2 . . . . Insert Component 4 | . . . . . 1 . . . 1 . . . . . . . . . . . . . 2 . . . . . . . . . . . . Analyze 2 | . . . . . 2 . . . . . . . . . . . . . . . . . . . . . . . . . . . . . . Retrieve Study 11 | . . . . . 2 . . . 4 . . . . . . . . . . . . . . . . . . . 3 . 2 . . . . Garrison Access Hacks 8 | . . . . . . . . . 1 . . . . . 1 1 . . . . 1 . . . . . . 2 . 1 1 . . . . Seal Access 8 | . . . . . . . . . 1 . . . . . 1 1 . . . . 1 . . . . . . 2 . 1 1 . . . . Unauthorized Hacks 30 | . 2 . . . 3 . 1 . 1 . 2 1 . . . 5 . . . . 4 . 7 . . . . 3 . 1 . . . . . Terminals 20 | . 2 . . . 3 . . . 1 . 2 1 . . . 3 . . . . 1 . 4 . . . . 2 . 1 . . . . . Track 2 | . . . . . . . . . . . . . . . . . . . . . . . 2 . . . . . . . . . . . . Assimilate 4 | . . . . . . . . . . . 1 . . . . 1 . . . . . . 1 . . . . . . 1 . . . . . Botnet 11 | . 1 . . . 1 . . . 1 . 1 1 . . . 2 . . . . 1 . 1 . . . . 2 . . . . . . . Operators 3 | . 1 . . . 2 . . . . . . . . . . . . . . . . . . . . . . . . . . . . . . Fabricators 9 | . . . . . . . . . . . . . . . . 2 . . . . 3 . 3 . . . . 1 . . . . . . . Prioritize 4 | . . . . . . . . . . . . . . . . 1 . . . . 1 . 1 . . . . 1 . . . . . . . Recompile 5 | . . . . . . . . . . . . . . . . 1 . . . . 2 . 2 . . . . . . . . . . . . Repair Stations . | . . . . . . . . . . . . . . . . . . . . . . . . . . . . . . . . . . . . Recycling Units 1 | . . . . . . . 1 . . . . . . . . . . . . . . . . . . . . . . . . . . . . Tunnel 1 | . . . . . . . 1 . . . . . . . . . . . . . . . . . . . . . . . . . . . . Scanalyzers . | . . . . . . . . . . . . . . . . . . . . . . . . . . . . . . . . . . . . Garrison Access . | . . . . . . . . . . . . . . . . . . . . . . . . . . . . . . . . . . . . Data Cores Recovered 2 | . . . . . 1 . . . . . . . . . . . . . . . . . . . . . . . . . 1 . . . . Used . | . . . . . . . . . . . . . . . . . . . . . . . . . . . . . . . . . . . . Hacking Detections 63 | . 5 . . . 4 2 . . 4 . 3 4 . . . 4 . . . . 2 . 7 . . . . 3 10 . 6 3 4 2 . Full Trace Events 4 | . . . . . 1 . . . . . . . . . . 1 . . . . . . . . . . . 1 1 . . . . . . Feedback Events 1 | . . . . . . . . . . . . . . . . . . . . . . . . . . . . . 1 . . . . . . Hackware Fried 1 | . . . . . . . . . . . . . . . . . . . . . . . . . . . . . 1 . . . . . . Feedback Blocked . | . . . . . . . . . . . . . . . . . . . . . . . . . . . . . . . . . . . . Robot Schematics Acquired 2 | . . . . . . . . . . . . . . . . . . . . . . . . . . . . . 2 . . . . . . Robots Built . | . . . . . . . . . . . . . . . . . . . . . . . . . . . . . . . . . . . . Authchips . | . . . . . . . . . . . . . . . . . . . . . . . . . . . . . . . . . . . . Time . | . . . . . . . . . . . . . . . . . . . . . . . . . . . . . . . . . . . . Total Robot Build Rating . | . . . . . . . . . . . . . . . . . . . . . . . . . . . . . . . . . . . . Part Schematics Acquired 19 | . 2 . . . 1 . . . 1 . . . . . . 1 . . 4 . 1 . 2 . . . . 2 5 . . . . . . Parts Built 11 | . . . . . . . . . . . . . . . . 4 . . . . 2 . 3 . . . . 2 . . . . . . . Authchips 5 | . . . . . . . . . . . . . . . . . . . . . 2 . 1 . . . . 2 . . . . . . . Time 755 | . . . . . . . . . . . . . . . . 186 . . . . 126 . 122 . . . . 321 . . . . . . . Total Part Build Rating 72 | . . . . . . . . . . . . . . . . 28 . . . . 12 . 22 . . . . 10 . . . . . . . Part Studies Acquired 11 | . . . . . 2 . . . 4 . . . . . . . . . . . . . . . . . . . 3 . 2 . . . . Parts Repaired 4 | . . . . . 1 . . . 1 . . 1 . . . . . . . . 1 . . . . . . . . . . . . . . Time 157 | . . . . . 32 . . . 26 . . 50 . . . . . . . . 49 . . . . . . . . . . . . . . Parts Recycled . | . . . . . . . . . . . . . . . . . . . . . . . . . . . . . . . . . . . . Recycled Matter . | . . . . . . . . . . . . . . . . . . . . . . . . . . . . . . . . . . . . Retrieved Matter . | . . . . . . . . . . . . . . . . . . . . . . . . . . . . . . . . . . . . Retrieved Components 9 | . . . . . 9 . . . . . . . . . . . . . . . . . . . . . . . . . . . . . . Parts Scanalyzed 1 | . . . . . 1 . . . . . . . . . . . . . . . . . . . . . . . . . . . . . . Part Schematics Acquired 1 | . . . . . 1 . . . . . . . . . . . . . . . . . . . . . . . . . . . . . . Parts Damaged . | . . . . . . . . . . . . . . . . . . . . . . . . . . . . . . . . . . . . Bothacking | -11 -10 -10 -10 -9 -8 -8 -8 -8 -6 -6 -6 -6 -6 -6 -6 -5 -5 -5 -5 -4 -4 -4 -4 -4 -4 -4 -3 -3 -3 -2 -2 -2 -1 -1 -1 ------------ Run | Yrd Mat Min Exi Min Mat Sto Rec Scr Fac Was Fac Ext Cet Arc Hub Fac Upp Upp Zhi Pro Fac Was Fac Upp Upp War Pro Res Tes Res Qua Sec Acc Com Ac0 Used RIF Installer . | . . . . . . . . . . . . . . . . . . . . . . . . . . . . . . . . . . . . Robots Hacked 2 | . . . . . . . . . 1 . . . . . . . . . . . 1 . . . . . . . . . . . . . . Non-combat 2 | . . . . . . . . . 1 . . . . . . . . . . . 1 . . . . . . . . . . . . . . Combat . | . . . . . . . . . . . . . . . . . . . . . . . . . . . . . . . . . . . . Robot Hacks Applied 2 | . . . . . . . . . 1 . . . . . . . . . . . 1 . . . . . . . . . . . . . . find_chute 2 | . . . . . . . . . 1 . . . . . . . . . . . 1 . . . . . . . . . . . . . . Relay Couplers Released . | . . . . . . . . . . . . . . . . . . . . . . . . . . . . . . . . . . . . Fabnet Peak Effective % . | . . . . . . . . . . . . . . . . . . . . . . . . . . . . . . . . . . . . Robots Rewired 30 | . . . . . . . 11 . 1 . . 17 . . . . . . . . . . . . . 1 . . . . . . . . . Allies Hacked . | . . . . . . . . . . . . . . . . . . . . . . . . . . . . . . . . . . . . Hacks Repelled 1 | . . . . . . . . . . . . . . . . . . . . . . . . . . 1 . . . . . . . . . Allies | -11 -10 -10 -10 -9 -8 -8 -8 -8 -6 -6 -6 -6 -6 -6 -6 -5 -5 -5 -5 -4 -4 -4 -4 -4 -4 -4 -3 -3 -3 -2 -2 -2 -1 -1 -1 -------- Run | Yrd Mat Min Exi Min Mat Sto Rec Scr Fac Was Fac Ext Cet Arc Hub Fac Upp Upp Zhi Pro Fac Was Fac Upp Upp War Pro Res Tes Res Qua Sec Acc Com Ac0 Total Allies 82 | . . 3 . . . 2 11 . 1 19 . 18 5 . . 1 . . . . . 19 1 . . 1 . . . 1 . . . . . Largest Group 19 | . . 3 2 . . 2 10 7 1 19 9 16 12 7 2 2 . . . . . 19 3 . . 1 1 . . 1 . . . . . Highest-Rated Group 813 | . . 79 48 . . 62 114 86 32 684 311 620 813 326 185 106 . . . . . 702 100 . . 82 82 . . 10 . . . . . Highest-Rated Ally 159 | . . 31 31 . . 31 18 18 32 50 47 159 159 96 96 96 . . . . . 50 46 . . 82 82 . . 10 . . . . . Initial UFD Resources 40 | . . . . . . . . . 24 24 24 24 24 24 24 27 27 27 27 29 29 29 29 29 29 29 32 32 32 36 36 36 40 40 40 Total Orders 41 | . . . . . . . . 3 . . . 12 11 3 5 4 . . . . . . . . . . 1 . . 2 . . . . . STAY 22 | . . . . . . . . 2 . . . 7 5 1 3 2 . . . . . . . . . . 1 . . 1 . . . . . FOLLOW 19 | . . . . . . . . 1 . . . 5 6 2 2 2 . . . . . . . . . . . . . 1 . . . . . Ally Attacks 593 | . . 3 . . . 16 14 14 2 147 61 113 27 40 36 6 . . . . . 106 6 . . 1 1 . . . . . . . . Total Damage 19141 | . . 41 . . . 272 296 218 94 2960 1043 2836 1399 1042 1268 97 . . . . . 7472 68 . . . 35 . . . . . . . . Kills 77 | . . 1 . . . 2 3 1 2 6 7 20 7 4 6 . . . . . . 18 . . . . . . . . . . . . . Allies Corrupted 1 | . . . . . . . . . . . . . . . 1 . . . . . . . . . . . . . . . . . . . . Allies Melted 3 | . . . . . . . . 3 . . . . . . . . . . . . . . . . . . . . . . . . . . . Intel | -11 -10 -10 -10 -9 -8 -8 -8 -8 -6 -6 -6 -6 -6 -6 -6 -5 -5 -5 -5 -4 -4 -4 -4 -4 -4 -4 -3 -3 -3 -2 -2 -2 -1 -1 -1 ------- Run | Yrd Mat Min Exi Min Mat Sto Rec Scr Fac Was Fac Ext Cet Arc Hub Fac Upp Upp Zhi Pro Fac Was Fac Upp Upp War Pro Res Tes Res Qua Sec Acc Com Ac0 Active Infowar (turns) 25113 | . 120 . . . 9 . . 178 793 387 307 2896 433 621 658 983 848 1256 236 754 1100 470 962 1019 482 1057 1966 1106 1699 496 1783 1126 754 614 . Optics 10193 | . . . . . 1 . . . 786 387 307 2896 433 621 593 . . . . . . . . . . . . 63 1699 496 1783 128 . . . Sensors 22692 | . . . . . . . . 178 778 355 306 2896 20 222 658 983 848 1256 236 754 1085 470 868 1019 482 1057 1959 1074 1473 434 1607 929 744 1 . Terrain 4706 | . . . . . . . . . . 32 . . . . . . . . . . . . 92 824 236 814 . . 265 268 739 696 738 2 . Structural 120 | . 120 . . . . . . . . . . . . . . . . . . . . . . . . . . . . . . . . . . Traps 8 | . . . . . 8 . . . . . . . . . . . . . . . . . . . . . . . . . . . . . . Jamming 11630 | . . . . . . . . . . . . . . . . . . . . . 465 . 393 731 482 221 1963 1106 1699 496 1750 956 754 614 . Robot Analysis Total 6 | . . . . . . . . . . . . . . . . . . . 4 . . . . . . . . 2 . . . . . . . Derelict Logs Recovered 12 | . . 2 . 2 . . . . . . . . . . . . 2 2 . 1 . . . 2 1 . . . . . . . . . . Drone Launches . | . . . . . . . . . . . . . . . . . . . . . . . . . . . . . . . . . . . . Drone Recoveries . | . . . . . . . . . . . . . . . . . . . . . . . . . . . . . . . . . . . . Exploration | -11 -10 -10 -10 -9 -8 -8 -8 -8 -6 -6 -6 -6 -6 -6 -6 -5 -5 -5 -5 -4 -4 -4 -4 -4 -4 -4 -3 -3 -3 -2 -2 -2 -1 -1 -1 ------------- Run | Yrd Mat Min Exi Min Mat Sto Rec Scr Fac Was Fac Ext Cet Arc Hub Fac Upp Upp Zhi Pro Fac Was Fac Upp Upp War Pro Res Tes Res Qua Sec Acc Com Ac0 Turns Passed 42934 | 82 1280 1310 543 1412 2774 889 1063 1847 793 387 307 2896 433 621 881 1029 850 1285 239 780 1175 505 992 1019 482 1127 1966 1106 1699 496 1783 1157 754 6102 870 Spaces Moved 32858 | 55 771 926 434 642 1598 436 570 1155 1137 358 378 2623 244 297 458 1105 1025 1095 294 940 1359 392 1105 1219 724 908 937 764 1023 330 1201 902 330 4518 605 Core 2 | 2 . . . . . . . . . . . . . . . . . . . . . . . . . . . . . . . . . . . Treads 44 | 1 . . . . 43 . . . . . . . . . . . . . . . . . . . . . . . . . . . . . . Legs 10142 | . . . . . . . . . . . . . . . . . . . . . . . . . . 26 937 764 1023 330 1201 684 330 4462 385 Wheels 6541 | 52 771 926 434 642 1555 436 570 1155 . . . . . . . . . . . . . . . . . . . . . . . . . . . Hover 15635 | . . . . . . . . . 1137 358 378 2623 244 297 458 1105 1025 1095 294 940 1359 392 1105 1219 724 882 . . . . . . . . . Flight . | . . . . . . . . . . . . . . . . . . . . . . . . . . . . . . . . . . . . Fastest Speed 34 | 50 100 110 125 125 115 115 135 135 34 50 50 50 58 58 114 59 58 58 58 58 58 58 55 55 55 46 105 105 100 98 98 102 105 104 101 Average Speed 88 | 99 107 116 125 158 124 130 138 148 41 50 50 50 58 93 114 60 60 58 59 58 58 94 55 55 55 85 111 105 101 99 99 108 105 106 109 Slowest Speed 240 | 160 115 125 125 215 240 230 155 150 94 50 50 58 126 114 114 130 129 63 63 58 138 138 142 130 55 180 112 105 105 100 102 175 106 176 172 Overloaded Moves . | . . . . . . . . . . . . . . . . . . . . . . . . . . . . . . . . . . . . Propulsion Burnouts . | . . . . . . . . . . . . . . . . . . . . . . . . . . . . . . . . . . . . Robots Hopped . | . . . . . . . . . . . . . . . . . . . . . . . . . . . . . . . . . . . . Potential Cave-ins 4 | . . . . . . . . . . . . . . . . . . . . . . . . . . . . 2 . . . 2 . . . Cave-ins Triggered . | . . . . . . . . . . . . . . . . . . . . . . . . . . . . . . . . . . . . Teleports 1 | . . . . . . . . . . . . . . . . . . . . . . . . . . . . . . . . . . 1 . Microwarps 34 | . . . . . . . . . . . . . . . . . . . . . . . . . . . . . . . . 12 . 2 20 Exploration Rate (%) 64 | 3 99 99 68 89 83 53 98 85 30 89 13 91 59 90 29 21 84 98 60 92 27 93 28 89 72 86 75 14 95 12 96 46 14 94 33 Regions Visited 35 Branch Regions 23 Pre-discovered Areas 8 | . . 1 . . . . 1 . . . . . . . . . 1 1 3 1 . . . . . . . . . . . . . . . Known Exits Taken 23 | . . . . . . 1 . 1 . . 1 1 1 1 1 1 1 1 1 1 . . 1 1 1 1 1 1 1 1 1 1 1 . . Unknown Exits Taken 8 | 1 1 1 1 1 1 . 1 . . . . . . . . . . . . . . . . . . . . . . . . . . 1 . Scrap Searched 23 | . . 1 . 2 . . . 7 . . . . . . . . 4 2 . 3 . . . 1 1 . 2 . . . . . . . . Spaces Dug 374 | . . . . . . . . 4 23 . 6 6 . . 6 24 . 1 . 13 29 . 39 13 10 2 23 17 36 8 21 63 11 3 16 Terrain Destroyed 1336 | . 9 79 . 37 29 . 3 6 43 1 8 21 . 26 191 78 . 1 . 22 65 1 136 18 24 3 57 35 62 42 34 75 14 112 104 Melee 23 | . . . . . . . . 4 19 . . . . . . . . . . . . . . . . . . . . . . . . . . Projectile 736 | . . . . . . . 3 2 11 1 8 17 . 26 41 32 . 1 . 22 47 1 62 18 24 3 57 35 61 13 30 74 14 42 91 AOE 558 | . 9 79 . 37 29 . . . 13 . . . . . 149 46 . . . . 18 . 74 . . . . . . 26 . . . 66 12 Terrain Rammed . | . . . . . . . . . . . . . . . . . . . . . . . . . . . . . . . . . . . . Walls Destroyed . | . . . . . . . . . . . . . . . . . . . . . . . . . . . . . . . . . . . . Machines Disabled . | . . . . . . . . . . . . . . . . . . . . . . . . . . . . . . . . . . . . Actions | -11 -10 -10 -10 -9 -8 -8 -8 -8 -6 -6 -6 -6 -6 -6 -6 -5 -5 -5 -5 -4 -4 -4 -4 -4 -4 -4 -3 -3 -3 -2 -2 -2 -1 -1 -1 --------- Run | Yrd Mat Min Exi Min Mat Sto Rec Scr Fac Was Fac Ext Cet Arc Hub Fac Upp Upp Zhi Pro Fac Was Fac Upp Upp War Pro Res Tes Res Qua Sec Acc Com Ac0 Total 44235 | 71 1131 1082 435 990 2090 615 818 1259 1383 484 485 4028 508 582 712 1406 1244 1730 341 1139 1630 513 1401 1537 780 1215 1816 990 1486 444 1670 1005 727 5739 749 Wait 7799 | 2 245 69 . 288 176 39 116 46 119 73 91 1098 211 210 144 184 196 616 2 161 109 90 171 282 27 181 829 141 221 38 261 78 374 895 16 Move 32364 | 54 770 925 433 641 1597 435 569 1154 1137 357 377 2622 243 296 457 1104 1024 1094 293 939 1359 391 1104 1218 723 907 936 763 1022 329 1200 695 329 4463 404 Hop . | . . . . . . . . . . . . . . . . . . . . . . . . . . . . . . . . . . . . Pick Up 368 | 5 24 6 . 9 30 17 3 7 14 3 2 1 6 14 21 16 2 1 5 1 21 4 12 2 . 18 2 10 22 3 11 13 1 49 13 Fast Attach 132 | 6 2 1 . 1 12 6 . 3 1 . . 2 2 . 4 3 1 1 3 . 2 3 3 . 1 6 . 2 6 3 1 20 . 17 20 Attach 148 | . 1 . . 3 9 6 1 2 4 . . . 1 3 2 7 2 2 3 . 7 4 5 1 . 6 1 5 2 3 4 13 4 22 25 Detach 107 | . . . . . 3 1 1 . . . . . . 3 5 3 2 3 3 . 2 2 4 . . 6 . 1 2 1 3 21 . 18 23 Swap 596 | . 10 19 1 14 36 9 2 16 30 6 4 8 13 6 11 25 4 2 12 11 35 10 25 10 5 25 8 7 41 17 46 53 4 47 24 Drop 423 | . 21 15 1 6 40 13 3 13 26 5 3 5 9 7 8 17 3 2 5 1 18 4 11 2 . 21 2 9 25 4 16 25 1 59 23 Fire 1980 | 4 58 47 . 28 187 81 16 11 23 35 8 144 23 43 60 47 10 9 15 26 76 5 66 22 24 42 38 52 145 46 128 87 14 160 200 Melee 39 | . . . . . . . . 7 25 5 . . . . . . . . . . 1 . . . . . . . . . . . . . 1 Ram . | . . . . . . . . . . . . . . . . . . . . . . . . . . . . . . . . . . . . Kick . | . . . . . . . . . . . . . . . . . . . . . . . . . . . . . . . . . . . . Crush . | . . . . . . . . . . . . . . . . . . . . . . . . . . . . . . . . . . . . Escape Stasis 47 | . . . . . . 8 . . . . . 39 . . . . . . . . . . . . . . . . . . . . . . . Rewire 232 | . . . . . . . 107 . 4 . . 109 . . . . . . . . . . . . . 3 . . . . . . . 9 . Trap . | . . . . . . . . . . . . . . . . . . . . . . . . . . . . . . . . . . . . Miscellaneous . | . . . . . . . . . . . . . . . . . . . . . . . . . . . . . . . . . . . . Route ------- -11/Scrapyard -10/Materials (discovered 4 exits: [*Mat x3] / [*Min]) -10/Mines (discovered 3 exits: [*Mat x2] / [*Exi]) -10/Exiles -9/Mines (discovered 2 exits: *Mat x2) -8/Materials (discovered 4 exits: *Fac x3 / *Sto) -8/Storage -8/Recycling (discovered 2 exits: *Fac / *Scr) -8/Scraptown (discovered 2 exits: *Fac x2) -6/Factory (discovered 3 exits: *Fac / *Low / *Ext) -6/Waste -6/Factory (discovered 4 exits: Low x2 / *Ext x2) -6/Extension (discovered 2 exits: *Fac / *Cet) -6/Cetus (discovered 2 exits: *Fac / *Arc) -6/Archives (discovered 3 exits: *Fac / *Hub x2) -6/Hub_04(d) -5/Factory (discovered 3 exits: *Fac / *Upp x2) -5/Upper Caves -5/Upper Caves (discovered 2 exits: *Fac / *Zhi) -5/Zhirov -4/Proximity Caves -4/Factory (discovered 2 exits: *Upp x2) -4/Waste -4/Factory (discovered 2 exits: *Upp x2) -4/Upper Caves -4/Upper Caves -4/Warlord -3/Proximity Caves -3/Research (discovered 4 exits: *Res / *Arm / *Tes x2) -3/Testing -2/Research (discovered 3 exits: *Acc / *Qua x2) -2/Quarantine (discovered 3 exits: *Acc / *Sec / [*Frg]) -2/Section 7 -1/Access -1/Command (discovered 3 exits: [*Sur x2] / [*Ac0]) -1/Access_0 History --------- Turn | Location | Event 18 | -11/Scrapyard | Discovered new exit (range 15) 83 | -11/Scrapyard | Entered Materials 294 | -10/Materials | Discovered new exit (range 16) 356 | -10/Materials | Build established: Mutant 690 | -10/Materials | Discovered new exit (range 8) 1098 | -10/Materials | Discovered new exit (range 16) 1222 | -10/Materials | Discovered new exit (range 5) 1363 | -10/Materials | Entered Mines 1380 | -10/Mines | Met a Derelict bent on vengeance 1496 | -10/Mines | Deemed a non-threat by the Exiles lab entrance 1497 | -10/Mines | Discovered new exit (range 5) 1513 | -10/Mines | Discovered new exit (range 9) 1933 | -10/Mines | Received a Mining Laser from a helpful Derelict 2040 | -10/Mines | Found a Scrap Suit stashed away for nefarious purposes 2070 | -10/Mines | Discovered new exit (range 5) 2123 | -10/Mines | Learned location of Storage (-8) 2187 | -10/Mines | Found Scrap Suit 2576 | -10/Mines | Build established: Scavenger-Mutant 2673 | -10/Mines | Entered Exiles 2673 | -10/Exiles | Accompanied by 2 allies 2703 | -10/Exiles | Led the pair of lost Derelicts to a safe place 2703 | -10/Exiles | Met 8R-AWN 2725 | -10/Exiles | Met EX-HEX 2773 | -10/Exiles | Met EX-DEC 3016 | -10/Exiles | Discovered new exit (range 11) 3092 | -10/Exiles | Met EX-BIN 3216 | -10/Exiles | Entered Mines 3306 | -9/Mines | Assembled infested the area 3311 | -9/Mines | Assisted by a Guerilla fighting off Assembled 3796 | -9/Mines | Core integrity fell below 50% 3892 | -9/Mines | Learned location of 1 exit from Materials 3994 | -9/Mines | Discovered new exit (range 14) 4038 | -9/Mines | Learned Materials garrison access intel 4128 | -9/Mines | Received a Rocket Launcher from a helpful Derelict 4478 | -9/Mines | Discovered new exit (range 12) 4628 | -9/Mines | Entered Materials 4628 | -8/Materials | Evolved 4 slots: Propulsion x2, Utility x2 4629 | -8/Materials | Identified exit to Factory 4630 | -8/Materials | Loaded intel: 1 garrison access location 4632 | -8/Materials | Discovered new exit (range 8) 4645 | -8/Materials | Central database locked down 4657 | -8/Materials | Lost 3 parts (1n2w) 4865 | -8/Materials | Repaired Mni. Grenade Launcher 4958 | -8/Materials | Garrison activated, responded to threat 5066 | -8/Materials | Lost 3 parts (2n1u) 5665 | -8/Materials | Build established: Mutant 6076 | -8/Materials | Discovered exit to Factory (range 8) 6447 | -8/Materials | Discovered exit to Factory (range 16) 7402 | -8/Materials | Entered Storage 7403 | -8/Storage | Identified exit to Recycling 7660 | -8/Storage | Garrison activated, responded to threat 7836 | -8/Storage | Destroyed 10 combat bots 7902 | -8/Storage | Core integrity fell below 50% 7961 | -8/Storage | Destroyed 9 combat bots 8177 | -8/Storage | Met a pair of Derelict thieves 8214 | -8/Storage | Used back door to open Recycling access 8250 | -8/Storage | Core integrity fell below 20% 8251 | -8/Storage | Garrison activated, responded to threat 8291 | -8/Storage | Entered Recycling 8768 | -8/Recycling | Build established: Commander-Mutant 9193 | -8/Recycling | Discovered new exit (range 16) 9288 | -8/Recycling | Scanned before Scraplab entrance 9310 | -8/Recycling | Entered Scraplab 9320 | -8/Recycling | Discovered new exit (range 3) 9354 | -8/Recycling | Entered Scraptown 9354 | -8/Scraptown | Accompanied by 7 allies 9354 | -8/Scraptown | System corruption cleaned by C-Scrubber 9588 | -8/Scraptown | Heard Great Nut preacher, LISTEN AND RECITE! 9592 | -8/Scraptown | Discovered new exit (range 7) 9755 | -8/Scraptown | Visited Bundlers 10073 | -8/Scraptown | Visited Cave Peace 10082 | -8/Scraptown | Visited IN-MT5's Study 10109 | -8/Scraptown | Visited UFD Registry 10109 | -8/Scraptown | Registered with UFD as "Steelskull" 10158 | -8/Scraptown | Visited Scrap Suit Storage 10185 | -8/Scraptown | Visited Observation Area 10245 | -8/Scraptown | Visited Science Testing Area 10269 | -8/Scraptown | Visited Science Guys 10314 | -8/Scraptown | Visited Analyses Database 10338 | -8/Scraptown | Visited Scrapoid Pod Storage 10518 | -8/Scraptown | Visited DA-N13 Charitable Foundation 10534 | -8/Scraptown | Found DCF Scrap (29 items) 10600 | -8/Scraptown | Visited Curators Association 10651 | -8/Scraptown | Visited Scrapoid Research Area 10751 | -8/Scraptown | Met Optimus 10751 | -8/Scraptown | Accepted into 0bPrime 10869 | -8/Scraptown | Civil war broke out across Scraptown 10952 | -8/Scraptown | Found Vmp. Humpback 10984 | -8/Scraptown | Found DM-GVY's Chainsaw 11065 | -8/Scraptown | Lost 17 allies 11076 | -8/Scraptown | Identified exit to Factory 11151 | -8/Scraptown | Found System Spiker 11186 | -8/Scraptown | Lost 3 allies 11194 | -8/Scraptown | Build established: Mutant 11201 | -8/Scraptown | Entered Factory 11201 | -6/Factory | Evolved 4 slots: Propulsion x1, Utility x3 11388 | -6/Factory | Discovered new exit (range 6) 11467 | -6/Factory | Repaired Huge Storage Unit 11533 | -6/Factory | Build established: Hacker-Scout 11591 | -6/Factory | Discovered new exit (range 20) 11829 | -6/Factory | Discovered new exit (range 12) 11890 | -6/Factory | Identified exit to Lower Caves 11994 | -6/Factory | Manually triggered Chute Trap 11994 | -6/Factory | Sucked down chute 11994 | -6/Factory | Entered Waste 12007 | -6/Waste | Spotted C-40 Crusher 12013 | -6/Waste | Warlord forces began an assault 12041 | -6/Waste | Spotted C-40 Crusher 12054 | -6/Waste | Allies destroyed C-40 Crusher 12055 | -6/Waste | Spotted C-40 Crusher 12064 | -6/Waste | Allies destroyed C-40 Crusher 12068 | -6/Waste | Spotted C-40 Crusher 12074 | -6/Waste | Destroyed C-40 Crusher 12079 | -6/Waste | Spotted C-40 Crusher 12079 | -6/Waste | Spotted C-40 Crusher 12085 | -6/Waste | Allies destroyed C-40 Crusher 12086 | -6/Waste | Allies destroyed C-40 Crusher 12101 | -6/Waste | Allies destroyed C-40 Crusher 12130 | -6/Waste | Lost 6 allies 12130 | -6/Waste | Discovered new exit (range 21) 12194 | -6/Waste | Found Damper Plating 12367 | -6/Waste | Identified exit to Factory 12381 | -6/Waste | Entered Factory 12381 | -6/Factory | Accompanied by 9 allies 12417 | -6/Factory | Identified exit to Extension 12540 | -6/Factory | Build established: Scout 12688 | -6/Factory | Entered Extension 12688 | -6/Extension | Accompanied by 1 ally 14778 | -6/Extension | Build established: Commander-Scout 15070 | -6/Extension | Spotted B-75 Beast 15192 | -6/Extension | Spotted B-75 Beast 15196 | -6/Extension | Allies destroyed B-75 Beast 15208 | -6/Extension | Allies destroyed B-75 Beast 15266 | -6/Extension | Rescued A7 15348 | -6/Extension | Energy Cycler disabled 15351 | -6/Extension | Rescued a captive Derelict 15385 | -6/Extension | Lost 5 allies 15452 | -6/Extension | Repaired Gravmag Array+ 15488 | -6/Extension | First assault squad dispatched 15551 | -6/Extension | Discovered new exit (range 19) 15551 | -6/Extension | Discovered new exit (range 16) 15561 | -6/Extension | Identified exit to Factory 15567 | -6/Extension | Identified exit to Cetus 15584 | -6/Extension | Entered Cetus 15584 | -6/Cetus | Accompanied by 8 allies (A7) 15589 | -6/Cetus | Acquired a Cetus Manufacturing Module code from A7 15608 | -6/Cetus | Spotted Cetus Guard 15608 | -6/Cetus | Spotted Cetus Guard 15608 | -6/Cetus | Spotted Cetus Guard 15608 | -6/Cetus | Spotted Cetus Guard 15623 | -6/Cetus | Allies destroyed Cetus Guard 15626 | -6/Cetus | Destroyed Cetus Guard 15628 | -6/Cetus | Allies destroyed Cetus Guard 15632 | -6/Cetus | Allies destroyed Cetus Guard 15670 | -6/Cetus | Started Cetus Manufacturing Module 15675 | -6/Cetus | Discovered new exit (range 21) 15686 | -6/Cetus | Identified exit to Archives 15695 | -6/Cetus | Manufactured an Enhanced Grunt 15720 | -6/Cetus | Manufactured an Enhanced Grunt 15745 | -6/Cetus | Manufactured an Enhanced Grunt 15770 | -6/Cetus | Manufactured an Enhanced Grunt 15795 | -6/Cetus | Manufactured an Enhanced Grunt 15862 | -6/Cetus | Build established: Commander-Mutant 15894 | -6/Cetus | Spotted Cetus Guard 15894 | -6/Cetus | Spotted Cetus Guard 15894 | -6/Cetus | Spotted Cetus Guard 15894 | -6/Cetus | Spotted Cetus Guard 15903 | -6/Cetus | Allies destroyed Cetus Guard 15932 | -6/Cetus | Allies destroyed Cetus Guard 15938 | -6/Cetus | Allies destroyed Cetus Guard 15942 | -6/Cetus | Allies destroyed Cetus Guard 15954 | -6/Cetus | Discovered exit to Factory (range 21) 15960 | -6/Cetus | Met Revision 17 15972 | -6/Cetus | Lost 4 allies 15981 | -6/Cetus | Found Prototype Device 15981 | -6/Cetus | Identified Exp. Thermal Shield 16001 | -6/Cetus | Found Exp. Thermal Shield 16017 | -6/Cetus | Entered Archives 16017 | -6/Archives | Accompanied by 8 allies 16101 | -6/Archives | Lost 5 allies 16166 | -6/Archives | Discovered new exit (range 21) 16196 | -6/Archives | Discovered exit to Factory (range 15) 16347 | -6/Archives | Discovered new exit (range 22) 16508 | -6/Archives | Build established: Scavenger-Mutant 16524 | -6/Archives | Identified exit to Hub_04(d) 16638 | -6/Archives | Entered Hub_04(d) 16638 | -6/Hub_04(d) | Accompanied by 2 allies 16888 | -6/Hub_04(d) | Build established: Scavenger-Skirmisher 16920 | -6/Hub_04(d) | Discovered exit to Factory (range 8) 17240 | -6/Hub_04(d) | Network Hub disabled 17271 | -6/Hub_04(d) | Spotted Lightning 17271 | -6/Hub_04(d) | Spotted Lightning 17272 | -6/Hub_04(d) | Spotted Lightning 17341 | -6/Hub_04(d) | Destroyed Lightning 17377 | -6/Hub_04(d) | Destroyed Lightning 17419 | -6/Hub_04(d) | Found Prototype Device 17419 | -6/Hub_04(d) | Identified Exp. EM Shield 17423 | -6/Hub_04(d) | Found Prototype Processor 17423 | -6/Hub_04(d) | Identified Exp. Targeting Computer 17435 | -6/Hub_04(d) | Found Prototype Energy Cannon 17443 | -6/Hub_04(d) | Found Prototype Device 17443 | -6/Hub_04(d) | Identified Exp. Phase Shifter 17450 | -6/Hub_04(d) | Found Prototype Energy Cannon 17519 | -6/Hub_04(d) | Entered Factory 17519 | -5/Factory | Accompanied by 1 ally 17519 | -5/Factory | Evolved 2 slots: Propulsion x1, Utility x1 17649 | -5/Factory | Central database locked down 17720 | -5/Factory | Build established: Hacker-Mutant 17807 | -5/Factory | Discovered new exit (range 9) 17831 | -5/Factory | Identified exit to Factory 17916 | -5/Factory | Fabricated Weapon Mount? 18185 | -5/Factory | Identified exit to Upper Caves 18247 | -5/Factory | Identified EMDS (x2) 18483 | -5/Factory | Fabricated Cmb. Linear Gravjet? 18548 | -5/Factory | Entered Upper Caves 19133 | -5/Upper Caves | Discovered new exit (range 9) 19210 | -5/Upper Caves | Learned Factory security intel 19396 | -5/Upper Caves | Identified exit to Upper Caves 19398 | -5/Upper Caves | Entered another Upper Caves area 19541 | -5/Upper Caves | Discovered exit to Factory (range 5) 19845 | -5/Upper Caves | Discovered new exit (range 8) 19848 | -5/Upper Caves | Learned Factory garrison access intel 19849 | -5/Upper Caves | Identified exit to Zhirov 19915 | -5/Upper Caves | Learned location of Warlord (-4) 20683 | -5/Upper Caves | Entered Zhirov 20683 | -5/Zhirov | Discovered new exit (range 3) 20684 | -5/Zhirov | Identified exit to Proximity Caves 20696 | -5/Zhirov | Met Zhirov 20710 | -5/Zhirov | Learned location of Quarantine (-2) 20710 | -5/Zhirov | Learned location of Testing (-3) 20710 | -5/Zhirov | Learned location of Command (-1) 20713 | -5/Zhirov | Zhirov requested help retrieving the SGEMP Prototype 20723 | -5/Zhirov | Found Alien Artifact 20723 | -5/Zhirov | Identified Integrated Reactor 20723 | -5/Zhirov | Installed Integrated Reactor, increased core energy generation (+10) 20790 | -5/Zhirov | Found Alien Artifact 20922 | -5/Zhirov | Entered Proximity Caves 21693 | -4/Proximity Caves | Discovered exit to Factory (range 5) 21702 | -4/Proximity Caves | Entered Factory 21702 | -4/Factory | Evolved 2 slots: Utility x2 21704 | -4/Factory | Loaded intel: 4 garrison access locations 22017 | -4/Factory | Build established: Wizard-Mutant 22035 | -4/Factory | Watched by a mysterious "MATRIX" hacker 22370 | -4/Factory | Identified exit to Upper Caves 22646 | -4/Factory | Central database locked down 22659 | -4/Factory | Repaired Adv. Energy Well? 22726 | -4/Factory | Fabricated Prc. Energy Filter (x1) 22770 | -4/Factory | Fabricated Prc. Energy Filter (x1) 22877 | -4/Factory | Sucked down chute 22877 | -4/Factory | Entered Waste 22887 | -4/Waste | Spotted C-40 Crusher 22919 | -4/Waste | Spotted C-40 Crusher 22940 | -4/Waste | Spotted C-40 Crusher 22946 | -4/Waste | Spotted C-40 Crusher 22959 | -4/Waste | Spotted C-40 Crusher 22965 | -4/Waste | Crushed by Compactor (1 part destroyed, 1 dropped) 22986 | -4/Waste | Spotted C-40 Crusher 22997 | -4/Waste | Warlord forces began an assault 23006 | -4/Waste | Allies destroyed C-40 Crusher 23046 | -4/Waste | Allies destroyed C-40 Crusher 23061 | -4/Waste | Allies destroyed C-40 Crusher 23076 | -4/Waste | Lost 12 allies 23108 | -4/Waste | Discovered new exit (range 12) 23119 | -4/Waste | Found Prototype Device 23119 | -4/Waste | Identified Exp. Cloaking Device 23144 | -4/Waste | Allies destroyed C-40 Crusher 23359 | -4/Waste | Identified exit to Factory 23382 | -4/Waste | Entered Factory 23382 | -4/Factory | Accompanied by 3 allies 23468 | -4/Factory | Identified Transdimensional Reconstructor 23661 | -4/Factory | Central database locked down 23799 | -4/Factory | Fabricated Lrn. Terrain Scanner? 23814 | -4/Factory | Fabricated Com. HERF Cannon? 24291 | -4/Factory | Found Quantum Capacitor 24374 | -4/Factory | Entered Upper Caves 24423 | -4/Upper Caves | Learned Research emergency access door positions 24528 | -4/Upper Caves | Build established: Hacker-Scout 24734 | -4/Upper Caves | Encountered a Warlord checkpoint 25084 | -4/Upper Caves | Spotted B-86 Titan 25384 | -4/Upper Caves | Discovered new exit (range 3) 25386 | -4/Upper Caves | Identified exit to Upper Caves 25393 | -4/Upper Caves | Entered another Upper Caves area 25541 | -4/Upper Caves | Learned Research garrison access intel 25641 | -4/Upper Caves | Discovered new exit (range 15) 25814 | -4/Upper Caves | Found Alien Artifact 25814 | -4/Upper Caves | Identified Dimensional Node Initializer 25814 | -4/Upper Caves | Initialized slip node 25875 | -4/Upper Caves | Identified exit to Warlord 25875 | -4/Upper Caves | Entered Warlord 25895 | -4/Warlord | System corruption cleaned by Quarantine Array 26072 | -4/Warlord | Visited the Vortex Lab 26076 | -4/Warlord | Warlord's base attacked by MAIN.C 26076 | -4/Warlord | Found Prototype Energy Gun 26076 | -4/Warlord | Identified Vortex Rifle 26080 | -4/Warlord | Found Prototype Piercing Weapon 26080 | -4/Warlord | Identified Vortex Lance 26083 | -4/Warlord | Found Vortex Rifle 26137 | -4/Warlord | Found Prototype Hackware 26142 | -4/Warlord | Found Prototype Device 26150 | -4/Warlord | Found Exp. Phase Shifter 26154 | -4/Warlord | Found Prototype Reactor 26159 | -4/Warlord | Identified Thermal Barrier 26168 | -4/Warlord | Identified Ghost Barrier 26275 | -4/Warlord | Rebuked by Warlord 26394 | -4/Warlord | Lost 3 allies 26426 | -4/Warlord | Warlord forces counterattacked 26436 | -4/Warlord | Build established: Wizard-Skirmisher 26500 | -4/Warlord | Spotted Striker 26504 | -4/Warlord | Spotted Executioner 26524 | -4/Warlord | Destroyed Striker 26547 | -4/Warlord | Destroyed Executioner 26638 | -4/Warlord | Lost 26 allies 26686 | -4/Warlord | Spotted Striker 26745 | -4/Warlord | Lost 3 allies 26751 | -4/Warlord | Warlord base infiltrated, sounded retreat 26793 | -4/Warlord | Spotted Executioner 26793 | -4/Warlord | Spotted Striker 26795 | -4/Warlord | Lost 3 allies 26846 | -4/Warlord | Found Prototype Device 26847 | -4/Warlord | Identified Exp. Shock Absorption System 26860 | -4/Warlord | Lost 3 allies 26896 | -4/Warlord | Spotted Executioner 26913 | -4/Warlord | Spotted Executioner 26915 | -4/Warlord | Spotted Striker 26919 | -4/Warlord | Destroyed Striker 26981 | -4/Warlord | Discovered new exit (range 14) 26981 | -4/Warlord | Spotted Striker 26981 | -4/Warlord | Spotted Striker 26987 | -4/Warlord | Lost 15 allies 26995 | -4/Warlord | Rewired Striker 27001 | -4/Warlord | Identified exit to Proximity Caves 27002 | -4/Warlord | Entered Proximity Caves 27002 | -3/Proximity Caves | Accompanied by 1 ally 27216 | -3/Proximity Caves | Build established: Wizard-Mutant 28920 | -3/Proximity Caves | Discovered new exit (range 3) 28922 | -3/Proximity Caves | Identified exit to Research 28968 | -3/Proximity Caves | System corruption reached 10% 28968 | -3/Proximity Caves | Entered Research 28968 | -3/Research | Evolved 2 slots: Power x1, Weapon x1 28969 | -3/Research | Identified exit to Armory 28971 | -3/Research | Loaded intel: 4 garrison access locations 28977 | -3/Research | Identified exit to Testing 28999 | -3/Research | Discovered new exit (range 6) 29168 | -3/Research | Revision forces began assault on 0b10 29196 | -3/Research | Identified Vortex Chain Reactor 29205 | -3/Research | Met up with Revision 17++ 29356 | -3/Research | Fabricated Exp. Utility Shielding? 29479 | -3/Research | Build established: Wizard-Skirmisher 29497 | -3/Research | Fabricated Exp. Utility Shielding? 29650 | -3/Research | Found Prototype Launcher 29655 | -3/Research | Identified Mni. Smartbomb Launcher 29668 | -3/Research | Research terminal network offline 29965 | -3/Research | Build established: Hacker-Skirmisher 30045 | -3/Research | Spotted Striker 30074 | -3/Research | Entered Testing 30173 | -3/Testing | Protovariant out of control (PP-W2ECWC2YVM) 30228 | -3/Testing | Spotted Striker 30229 | -3/Testing | Spotted Striker 30268 | -3/Testing | Found Gamma Bomb Array 31089 | -3/Testing | Declared boring by mysterious "MATRIX" hacker 31135 | -3/Testing | Adv. Hacking Suite fried by hacking feedback 31162 | -3/Testing | Discovered new exit (range 4) 31187 | -3/Testing | Identified exit to Research 31202 | -3/Testing | Destroyed 7 combat bots 31214 | -3/Testing | Found Prototype Device 31214 | -3/Testing | Identified Exp. Hardlight Generator 31362 | -3/Testing | Found Prototype Ballistic Gun 31362 | -3/Testing | Identified Hyp. Multirail 31429 | -3/Testing | Found Prototype Device 31442 | -3/Testing | Identified Exp. Focal Shield 31482 | -3/Testing | Unchained authorized (DW-4LL) 31538 | -3/Testing | Found Prototype Protection 31538 | -3/Testing | Identified Lgt. Regenerative Plating 31540 | -3/Testing | Found Prototype Protection 31540 | -3/Testing | Identified Med. Regenerative Plating 31543 | -3/Testing | Found Med. Regenerative Plating 31660 | -3/Testing | Found Prototype Energy Cannon 31660 | -3/Testing | Identified Cld. Nova Cannon 31702 | -3/Testing | System corruption reached 10% 31773 | -3/Testing | Entered Research 31773 | -2/Research | Evolved 2 slots: Utility x1, Weapon x1 31852 | -2/Research | Identified exit to Quarantine 31990 | -2/Research | Discovered new exit (range 22) 32175 | -2/Research | Identified exit to Access 32212 | -2/Research | Spotted B-90 Cyclops 32269 | -2/Research | Entered Quarantine 32702 | -2/Quarantine | Unchained authorized (DW-4LL) 32750 | -2/Quarantine | Found Alien Energy Cannon 32969 | -2/Quarantine | Cryocooling Duct disabled 32984 | -2/Quarantine | Ambient heat levels rising (+20) 32984 | -2/Quarantine | Non-combat units ordered to evacuate 33024 | -2/Quarantine | Found Alien Artifact 33049 | -2/Quarantine | Discovered exit to Access (range 12) 33218 | -2/Quarantine | Cryocooling Duct disabled 33233 | -2/Quarantine | Ambient heat levels rising (+20) 33233 | -2/Quarantine | Combat units ordered to evacuate 33244 | -2/Quarantine | DW-4LL burst out of a wall 33244 | -2/Quarantine | Spotted DW-4LL 33333 | -2/Quarantine | Quarantine Guard activated 33379 | -2/Quarantine | Spotted Quarantine Guard 33412 | -2/Quarantine | Spotted Quarantine Guard 33457 | -2/Quarantine | Destroyed Quarantine Guard 33502 | -2/Quarantine | Destroyed Quarantine Guard 33565 | -2/Quarantine | Spotted Quarantine Guard 33634 | -2/Quarantine | Spotted Quarantine Guard 33642 | -2/Quarantine | Destroyed Quarantine Guard 33730 | -2/Quarantine | Spotted Quarantine Guard 33811 | -2/Quarantine | Spotted Quarantine Guard 33873 | -2/Quarantine | Destroyed Quarantine Guard 33883 | -2/Quarantine | Spotted Quarantine Guard 33952 | -2/Quarantine | Spotted Fortress 34047 | -2/Quarantine | Discovered new exit (range 8) 34047 | -2/Quarantine | Spotted Quarantine Guard 34048 | -2/Quarantine | Discovered new exit (range 5) 34048 | -2/Quarantine | Spotted Quarantine Guard 34051 | -2/Quarantine | Identified exit to Section 7 34052 | -2/Quarantine | Entered Section 7 34078 | -2/Section 7 | Found Alien Artifact 34078 | -2/Section 7 | Identified Integrated Dissipator 34078 | -2/Section 7 | Installed Integrated Dissipator, increased core heat dissipation (+20) 34102 | -2/Section 7 | Found Integrated Dissipator 34102 | -2/Section 7 | Installed Integrated Dissipator, increased core heat dissipation (+20) 34200 | -2/Section 7 | Found Alien Artifact 34200 | -2/Section 7 | Identified Core Reset Matrix 34200 | -2/Section 7 | Identified Core Cannon 34200 | -2/Section 7 | Identified Subatomic Replicator 34200 | -2/Section 7 | Used Core Reset Matrix 34204 | -2/Section 7 | Detected hypermatrix surge 34204 | -2/Section 7 | Sensed 14 artifacts in vicinity 34221 | -2/Section 7 | Found Integrated Reactor 34221 | -2/Section 7 | Installed Integrated Reactor, increased core energy generation (+10) 34530 | -2/Section 7 | Found Microwarp Drive 34563 | -2/Section 7 | Spotted Executioner 34563 | -2/Section 7 | Spotted Executioner 34567 | -2/Section 7 | Destroyed Executioner 34569 | -2/Section 7 | Destroyed Executioner 34614 | -2/Section 7 | Found Prototype Device 34614 | -2/Section 7 | Identified Adv. Kinecellerator 34622 | -2/Section 7 | Found Prototype Processor 34622 | -2/Section 7 | Identified Exp. Core Analyzer 34625 | -2/Section 7 | Found Prototype Processor 34625 | -2/Section 7 | Identified Exp. Targeting Computer 34637 | -2/Section 7 | Found Exp. Targeting Computer 34685 | -2/Section 7 | Spotted B-99 Colossus 34797 | -2/Section 7 | Found Integrity Redistributor 34797 | -2/Section 7 | Used Integrity Redistributor, redistributed integrity from core (-198) 34835 | -2/Section 7 | Used Subatomic Replicator to replicate LRC Inertial Stabilizer 34837 | -2/Section 7 | Found LRC Inertial Stabilizer 34837 | -2/Section 7 | Installed LRC Inertial Stabilizer, increased mass support (+10) 34839 | -2/Section 7 | Installed LRC Inertial Stabilizer, increased mass support (+10) 34845 | -2/Section 7 | Found LRC Armor 34845 | -2/Section 7 | Installed LRC Armor, increased core integrity (+250) 34888 | -2/Section 7 | Found Integrated Dissipator 34888 | -2/Section 7 | Installed Integrated Dissipator, increased core heat dissipation (+20) 34932 | -2/Section 7 | Found Integrity Redistributor 35052 | -2/Section 7 | First assault squad dispatched 35205 | -2/Section 7 | Discovered exit to Access (range 5) 35209 | -2/Section 7 | Entered Access 35209 | -1/Access | Evolved 2 slots: Utility x2 35379 | -1/Access | Identified exit to Command 35406 | -1/Access | Build established: Alien-Gunner 35963 | -1/Access | Entered Command 36517 | -1/Command | Spotted Combat Programmer 36517 | -1/Command | Spotted Combat Programmer 36536 | -1/Command | Destroyed Combat Programmer 36582 | -1/Command | Spotted M Guard 36586 | -1/Command | Spotted M Guard 36611 | -1/Command | Destroyed M Guard 36620 | -1/Command | Destroyed M Guard 36637 | -1/Command | Found Corrupted Cld. Nova Cannon 36641 | -1/Command | Destroyed 7 combat bots 36646 | -1/Command | Destroyed Combat Programmer 36646 | -1/Command | All MAIN.C guards destroyed 36653 | -1/Command | Found Corrupted Prototype Protection 36660 | -1/Command | Found Corrupted Prototype Device 36660 | -1/Command | Identified AEGIS Remote Shield 36666 | -1/Command | Found Corrupted AEGIS Remote Shield 36687 | -1/Command | Found Corrupted Prototype Protection 36792 | -1/Command | System corruption reached 10% 36830 | -1/Command | Met MAIN.C 36834 | -1/Command | 0b10 Conduit disabled 36857 | -1/Command | Destroyed MAIN.C Shell 36858 | -1/Command | MAIN.C activated Command garrisons 36898 | -1/Command | System corruption reached 30% 36908 | -1/Command | Destroyed MAIN.C 36920 | -1/Command | Identified Hvy. Regenerative Plating 36920 | -1/Command | Discovered new exit (range 37) 36920 | -1/Command | Discovered new exit (range 102) 36920 | -1/Command | Extracted map data and part IDs from MAIN.C's data core 36926 | -1/Command | Lost 3 parts (3w) 36963 | -1/Command | Found Vortex Chain Reactor 36968 | -1/Command | Found Exp. System Purifier 37358 | -1/Command | Build established: Alien-Mutant 37441 | -1/Command | Found Hvy. Regenerative Plating 37513 | -1/Command | Found Omega Cannon 37807 | -1/Command | Build established: Alien-Gunner 38018 | -1/Command | Found Prototype Processor 38033 | -1/Command | Identified Exp. Targeting Computer 39399 | -1/Command | Found Gamma Bomb Array 39401 | -1/Command | Found Gamma Bomb Array 39443 | -1/Command | Phase Generator disabled 40819 | -1/Command | Found Multirail 40944 | -1/Command | Found Corrupted Multirail 40948 | -1/Command | Found Corrupted Multirail 41658 | -1/Command | Found Hvy. Reactive Plating 42046 | -1/Command | Warped through subspace to slip node 42046 | -1/Command | Discovered new exit (range 4) 42065 | -1/Command | Entered Access_0 42066 | -1/Access_0 | Sensed 3 artifacts in vicinity 42067 | -1/Access_0 | Met Architect 42073 | -1/Access_0 | Architect warped through subspace 42085 | -1/Access_0 | Destroyed A8 42156 | -1/Access_0 | Architect warped through subspace 42207 | -1/Access_0 | Architect warped through subspace 42265 | -1/Access_0 | Subspace Access Node disabled 42307 | -1/Access_0 | A6 warped into view 42317 | -1/Access_0 | Destroyed A6 42339 | -1/Access_0 | Architect warped through subspace 42379 | -1/Access_0 | Architect warped through subspace 42394 | -1/Access_0 | Found Sigix Broadsword 42416 | -1/Access_0 | Architect warped through subspace 42447 | -1/Access_0 | Architect warped through subspace 42481 | -1/Access_0 | Architect warped through subspace 42547 | -1/Access_0 | Architect warped through subspace 42564 | -1/Access_0 | Subspace Access Node disabled 42574 | -1/Access_0 | Architect warped through subspace 42596 | -1/Access_0 | Build established: Alien-Mutant 42601 | -1/Access_0 | Architect warped through subspace 42627 | -1/Access_0 | Architect warped through subspace 42656 | -1/Access_0 | Architect warped through subspace 42693 | -1/Access_0 | Architect warped through subspace 42700 | -1/Access_0 | Used Integrity Redistributor, redistributed integrity from core (-266) 42701 | -1/Access_0 | Core integrity fell below 50% 42715 | -1/Access_0 | A5 warped into view 42734 | -1/Access_0 | Architect warped through subspace 42757 | -1/Access_0 | Subspace Access Node disabled 42780 | -1/Access_0 | Destroyed A5 42790 | -1/Access_0 | Architect warped through subspace 42813 | -1/Access_0 | Core integrity fell below 20% 42828 | -1/Access_0 | Architect warped through subspace 42859 | -1/Access_0 | Architect warped through subspace 42935 | -1/Access_0 | Core destroyed Last Messages --------------- 42911_ Extracted 600 energy. 42911_ Penetrated by Quantum Shear. 42912_ Enhanced Hunter system terminally corrupted. 42912_ Gravity Neutralizer fried. 42912_ Exp. Targeting Computer fried. 42913_ Enhanced Hunter system terminally corrupted. 42913_ Exp. Targeting Computer fried. 42913_ Exp. Phase Shifter fried. 42914_ Penetrated by Quantum Shear. 42916_ Quantum Shear penetrates Earth. 42921_ Penetrated by Quantum Shear. 42921_ Quantum Shear penetrates Wall. 42921_ Architect knocked back. 42923_ Penetrated by Quantum Shear. 42931_ Acquired Exp. Energy Well. 42933_ Quantum Shear penetrates Earth. 42933_ Penetrated by HV Slug. 42934_ Microwarped (distance 8). 42935_ Microwarped (distance 13). [Achievement: Collector] Map ----- +----------------------------------------------------+ | ?????????????????????????????????????????????????? | | ?????????????????????????????????????????????????? | | ?????????????????????????????????????????????????? | | ?????????????????????????????????????????????????? | | ?????????????????????????????????????????????????? | | ?????????????????????????????????????????????????? | | ?????????????????????????????????????????????????? | | ?????????????????????????????????????????????????? | | ?????????????????????????????????????????????????? | | ?????????????????????????????????????????????????? | | ?????????????????????????????????????????????????? | | ?????????????????????????????????????????????????? | | ?????????????????????????????????????????????????? | | ?????????????????????????????????????????????????? | | ?????????????????????????????????????????????????? | | ?????????????????????????????????????????????????? | | ?????????????????????????????????????????????????? | | ?????????????????????????????????????????????????? | | ?????????????????????????????????????????????????? | | ????????????????????????????????????????????###### | | ??????????????????????????????????????????# | | ??????????????????????????????????????????# | | ???????????????????????????##?????????????# ##### | | ?????????????????????????? ##???????????????????? | | ????????????????????????## #???????????????????? | | ??????????????????????###@ #???????????????????? | | ??????????????????????# #??????????????????? | | ?????????????????????# ## #??????????????????? | | ????????????????????# ##?????????????????????? | | ????????????????????### #??????????????????????? | | ??????????????????????# #??????????????????????? | | ?????????????????????## #??????????????????????? | | ?????????????????##### #??????????????????????? | | ??????????????#### #??????????????????????? | | ????????????### ## ##?????????????????????? | | ????????????# "#"# ## ???????????##????? | | ???????????## "" "# ???????????## ## ?? | | ?????????### "" ## !#???????????????# ?? | | " " !!!#??????????????## ?? | | ?? ""#" !!]#??????????????# ?? | | ????????# "" % =]=!*=* ??????????# #?? | | ????????###"#% !!%=! ??????????# ### | | ??????????#" "# ###!= ???????????# | | ??????????# ### ##?? ???????????## | | ??????????## ""# #?###??? ??????????## | | ?????????### """##??????? ## ??######### | | ?????????# "#?##??????##? ?## " | | ?????????# "" # #?????????# ?# #" | | ?????????## """"####???????? ## #" #???# # | | ??????????#" #????????"#" #???# " ## | +----------------------------------------------------+ Best States ------------- Heat Dissipation 112 Coolant Potential 120 Energy Generation 75 Energy Capacity 1300 Matter Stores 300 Matter Capacity 300 Sight Range 23 Robot Scan Range 16 Terrain Scan Range 24 Terrain Scan Density 10 Jamming Range 16 Corruption Containment 12 Armor Coverage 1600 Resistance: KI 40 Resistance: TH 50 Resistance: EX 75 Resistance: EM 90 Core Shielding 40 Utility Shielding 90 Weapon Cycling 25 Phase Shifting 20 Evasion (%) 89 Targeting Accuracy 20 Target Analysis 8 Core Analysis 8 Armor Integrity Analysis 40 Recoil Reduction 4 Matter Filtering 50 Energy Filtering 50 Kinecelleration 40 Salvage Targeting 4 Offensive Hacking 64 Defensive Hacking 20 Authchip Count 2 Item Schematics ----------------- None Robot Schematics ------------------ None Fabricated ------------ Weapon Mount | x2 | -5/Factory Cmb. Linear Gravjet | x2 | -5/Factory | Preloaded Prc. Energy Filter | x1 | -4/Factory | Authchip Prc. Energy Filter | x1 | -4/Factory | Authchip Lrn. Terrain Scanner | x2 | -4/Factory | Authchip Com. HERF Cannon | x1 | -4/Factory | Preloaded Exp. Utility Shielding | x1 | -3/Research | Authchip Exp. Utility Shielding | x1 | -3/Research | Authchip Repaired ---------- Mni. Grenade Launcher | 30% | -8/Materials Huge Storage Unit | 33% | -6/Factory Gravmag Array | 17% | -6/Extension Adv. Energy Well | 38% | -4/Factory Studied --------- None Alien Tech Used ----------------- Integrated Reactor Dimensional Node Initializer Integrated Dissipator Core Reset Matrix Core Cannon Microwarp Drive Integrity Redistributor Subatomic Replicator LRC Inertial Stabilizer LRC Armor Transdimensional Reconstructor Sigix Broadsword Achievements -------------- Anti-science Crusade Collector Challenges ------------ None Game ------ Seed TachyonAuthchipReplicator Manual? 0 Play Time 10:07:46 Cumulative 639.4 hours Start 2026.09.10 @ 00:29:31 End 2026.09.13 @ 00:27:33 Sessions 9 Manual Loads 0 Difficulty Rogue Special Mode None Game No. 275 Rogue 275 Adventurer 0 Explorer 0 Win Type - Total 13 Types 9/0/3/0/0/0/1/0/0/0 Lore% 81 Gallery% 75 Achievement% 55 Wizard Run 0 Options --------- Layout 0 ASCII 0 Keyboard 1 Movement Vi Keybinds 0 Fullscreen 2 Font 18/SmallcapsGlow Map View 76x50 Zoom Use 0% Tactical HUD 1 Map Filters NONE Filters NONE Steam 1 RUN: 82a60d6f-167c-401c-baa4-319bd58013ce